Body Name,Body,Service division categorisation,Expense Type,Date paid,Transaction Reference,Net,Supplier Name,Redacted/Excluded
East Lindsey District Council,http://statistics.data.gov.uk/id/local-authority/32UC,"Performance, Governance & Commissioning",Grants and Contributions to Outside Bodies- No Service Recei,01/10/2014,IJ00036699,700.00,ST PETERS CHURCH TRUSTHORPE,
East Lindsey District Council,http://statistics.data.gov.uk/id/local-authority/32UC,Neighbourhood Services,Grants and Contributions to Outside Bodies- No Service Recei,02/10/2014,IJ00036991,6530.00,ALFORD TOWN COUNCIL,
East Lindsey District Council,http://statistics.data.gov.uk/id/local-authority/32UC,Corporate Accounting,Other Miscellaneous Expenses,02/10/2014,IJ00036975,2300.00,AUDIT COMMISSION,
East Lindsey District Council,http://statistics.data.gov.uk/id/local-authority/32UC,Theatre Manager,Professional & Contractors Fees,02/10/2014,IJ00037015,127.77,BIFFA WASTE SERVICES LTD,
East Lindsey District Council,http://statistics.data.gov.uk/id/local-authority/32UC,Leisure Operations,Professional & Contractors Fees,02/10/2014,IJ00037015,127.77,BIFFA WASTE SERVICES LTD,
East Lindsey District Council,http://statistics.data.gov.uk/id/local-authority/32UC,Economic & Tourism,Professional & Contractors Fees,02/10/2014,IJ00037015,63.89,BIFFA WASTE SERVICES LTD,
East Lindsey District Council,http://statistics.data.gov.uk/id/local-authority/32UC,Economic & Tourism,Professional & Contractors Fees,02/10/2014,IJ00037015,63.89,BIFFA WASTE SERVICES LTD,
East Lindsey District Council,http://statistics.data.gov.uk/id/local-authority/32UC,TL Property,Professional & Contractors Fees,02/10/2014,IJ00037015,63.89,BIFFA WASTE SERVICES LTD,
East Lindsey District Council,http://statistics.data.gov.uk/id/local-authority/32UC,Leisure Operations,Professional & Contractors Fees,02/10/2014,IJ00037015,63.89,BIFFA WASTE SERVICES LTD,
East Lindsey District Council,http://statistics.data.gov.uk/id/local-authority/32UC,Leisure Operations,Professional & Contractors Fees,02/10/2014,IJ00037015,63.89,BIFFA WASTE SERVICES LTD,
East Lindsey District Council,http://statistics.data.gov.uk/id/local-authority/32UC,TL Property,Professional & Contractors Fees,02/10/2014,IJ00037015,63.89,BIFFA WASTE SERVICES LTD,
East Lindsey District Council,http://statistics.data.gov.uk/id/local-authority/32UC,TL Property,Professional & Contractors Fees,02/10/2014,IJ00037015,263.60,BIFFA WASTE SERVICES LTD,
East Lindsey District Council,http://statistics.data.gov.uk/id/local-authority/32UC,Leisure Operations,Professional & Contractors Fees,02/10/2014,IJ00037015,319.44,BIFFA WASTE SERVICES LTD,
East Lindsey District Council,http://statistics.data.gov.uk/id/local-authority/32UC,Leisure Operations,Other agencies,02/10/2014,IJ00036947,3036.92,COMPETITION LINE (UK) LTD,
East Lindsey District Council,http://statistics.data.gov.uk/id/local-authority/32UC,Neighbourhood Services,Professional & Contractors Fees,02/10/2014,IJ00036992,110.00,SID DENNIS & SONS LTD,
East Lindsey District Council,http://statistics.data.gov.uk/id/local-authority/32UC,Neighbourhood Services,Professional & Contractors Fees,02/10/2014,IJ00036992,480.00,SID DENNIS & SONS LTD,
East Lindsey District Council,http://statistics.data.gov.uk/id/local-authority/32UC,Leisure Operations,Cleaning Contract,02/10/2014,IJ00037096,1201.45,STOWLIN LTD,
East Lindsey District Council,http://statistics.data.gov.uk/id/local-authority/32UC,Leisure Operations,Other Miscellaneous Expenses,02/10/2014,IJ00036996,593.50,VENDING ENTERPRISES,
East Lindsey District Council,http://statistics.data.gov.uk/id/local-authority/32UC,Information Technology,Computer Hardware Purchase,02/10/2014,IJ00037132,16134.72,DELL COMPUTER CORPORATION LTD,
East Lindsey District Council,http://statistics.data.gov.uk/id/local-authority/32UC,Corporate Management,Lincolnshire Legal Services,02/10/2014,IJ00036958,15638.94,LINCOLNSHIRE COUNTY COUNCIL,
East Lindsey District Council,http://statistics.data.gov.uk/id/local-authority/32UC,Corporate Management,Lincolnshire Legal Services,02/10/2014,IJ00036958,539.18,LINCOLNSHIRE COUNTY COUNCIL,
East Lindsey District Council,http://statistics.data.gov.uk/id/local-authority/32UC,Customer Services Manager,Rent and Lease Payments,02/10/2014,IJ00037115,1231.25,LINCOLNSHIRE COUNTY COUNCIL,
East Lindsey District Council,http://statistics.data.gov.uk/id/local-authority/32UC,TL Property,Buildings Maintenance - Responsive,02/10/2014,IJ00037048,1530.89,SEYMOUR & CASTLE LTD,
East Lindsey District Council,http://statistics.data.gov.uk/id/local-authority/32UC,Neighbourhood Services,Fuel & Oil,02/10/2014,IJ00037074,1026.60,WATSON PETROLEUM LTD,
East Lindsey District Council,http://statistics.data.gov.uk/id/local-authority/32UC,Corporate Accounting,Internal Drainage Board Levies,02/10/2014,IJ00037103,635149.00,LINDSEY MARSH DRAINAGE BOARD,
East Lindsey District Council,http://statistics.data.gov.uk/id/local-authority/32UC,Neighbourhood Services,Materials and Consumables,02/10/2014,IJ00037076,623.94,RIGBY TAYLOR LIMITED,
East Lindsey District Council,http://statistics.data.gov.uk/id/local-authority/32UC,Economic & Tourism,Agency Staff,02/10/2014,IJ00036924,68.60,WORKFORCE UNLIMITED,
East Lindsey District Council,http://statistics.data.gov.uk/id/local-authority/32UC,Economic & Tourism,Agency Staff,02/10/2014,IJ00036924,492.45,WORKFORCE UNLIMITED,
East Lindsey District Council,http://statistics.data.gov.uk/id/local-authority/32UC,Economic & Tourism,Agency Staff,02/10/2014,IJ00036925,154.35,WORKFORCE UNLIMITED,
East Lindsey District Council,http://statistics.data.gov.uk/id/local-authority/32UC,Economic & Tourism,Agency Staff,02/10/2014,IJ00036925,688.45,WORKFORCE UNLIMITED,
East Lindsey District Council,http://statistics.data.gov.uk/id/local-authority/32UC,Leisure Operations,Staff Training Expenses,02/10/2014,IJ00036923,2380.00,THE WRIGHT FOUNDATION,
East Lindsey District Council,http://statistics.data.gov.uk/id/local-authority/32UC,Hsg Advice & Homelessness TL,Grants and Contributions- Where a Service is Received,02/10/2014,IJ00037118,560.00,LIVES,
East Lindsey District Council,http://statistics.data.gov.uk/id/local-authority/32UC,Hsg Advice & Homelessness TL,Grants and Contributions- Where a Service is Received,02/10/2014,IJ00037119,560.00,LIVES,
East Lindsey District Council,http://statistics.data.gov.uk/id/local-authority/32UC,BALANCE  SHEET,VAT Customs and Excise,02/10/2014,IJ00036969,822.87,JACOBS,
East Lindsey District Council,http://statistics.data.gov.uk/id/local-authority/32UC,Theatre Manager,Gas,02/10/2014,IJ00037102,1361.88,ESPO,
East Lindsey District Council,http://statistics.data.gov.uk/id/local-authority/32UC,Leisure Operations,Gas,02/10/2014,IJ00037102,1280.90,ESPO,
East Lindsey District Council,http://statistics.data.gov.uk/id/local-authority/32UC,Leisure Operations,Gas,02/10/2014,IJ00037102,7450.85,ESPO,
East Lindsey District Council,http://statistics.data.gov.uk/id/local-authority/32UC,Leisure Operations,Gas,02/10/2014,IJ00037102,-291.98,ESPO,
East Lindsey District Council,http://statistics.data.gov.uk/id/local-authority/32UC,Leisure Operations,Gas,02/10/2014,IJ00037102,-177.60,ESPO,
East Lindsey District Council,http://statistics.data.gov.uk/id/local-authority/32UC,Leisure Operations,Gas,02/10/2014,IJ00037102,277.12,ESPO,
East Lindsey District Council,http://statistics.data.gov.uk/id/local-authority/32UC,Leisure Operations,Gas,02/10/2014,IJ00037102,-9933.00,ESPO,
East Lindsey District Council,http://statistics.data.gov.uk/id/local-authority/32UC,Leisure Operations,Gas,02/10/2014,IJ00037102,22528.55,ESPO,
East Lindsey District Council,http://statistics.data.gov.uk/id/local-authority/32UC,Leisure Operations,Gas,02/10/2014,IJ00037102,467.08,ESPO,
East Lindsey District Council,http://statistics.data.gov.uk/id/local-authority/32UC,TL Property,Gas,02/10/2014,IJ00037102,11.79,ESPO,
East Lindsey District Council,http://statistics.data.gov.uk/id/local-authority/32UC,TL Property,Gas,02/10/2014,IJ00037102,373.74,ESPO,
East Lindsey District Council,http://statistics.data.gov.uk/id/local-authority/32UC,TL Property,Gas,02/10/2014,IJ00037102,31.86,ESPO,
East Lindsey District Council,http://statistics.data.gov.uk/id/local-authority/32UC,TL Property,Gas,02/10/2014,IJ00037102,-1631.35,ESPO,
East Lindsey District Council,http://statistics.data.gov.uk/id/local-authority/32UC,TL Property,Gas,02/10/2014,IJ00037102,2026.85,ESPO,
East Lindsey District Council,http://statistics.data.gov.uk/id/local-authority/32UC,Economic & Tourism,Gas,02/10/2014,IJ00037102,-257.07,ESPO,
East Lindsey District Council,http://statistics.data.gov.uk/id/local-authority/32UC,Economic & Tourism,Gas,02/10/2014,IJ00037102,-303.38,ESPO,
East Lindsey District Council,http://statistics.data.gov.uk/id/local-authority/32UC,Economic & Tourism,Gas,02/10/2014,IJ00037102,510.33,ESPO,
East Lindsey District Council,http://statistics.data.gov.uk/id/local-authority/32UC,Leisure Operations,Gas,02/10/2014,IJ00037102,139.13,ESPO,
East Lindsey District Council,http://statistics.data.gov.uk/id/local-authority/32UC,Economic & Tourism,Gas,02/10/2014,IJ00037102,154.99,ESPO,
East Lindsey District Council,http://statistics.data.gov.uk/id/local-authority/32UC,TL Property,Gas,02/10/2014,IJ00037102,121.67,ESPO,
East Lindsey District Council,http://statistics.data.gov.uk/id/local-authority/32UC,Leisure Operations,Gas,02/10/2014,IJ00037102,179.27,ESPO,
East Lindsey District Council,http://statistics.data.gov.uk/id/local-authority/32UC,TL Property,Gas,02/10/2014,IJ00037102,31.93,ESPO,
East Lindsey District Council,http://statistics.data.gov.uk/id/local-authority/32UC,Economic & Tourism,Gas,02/10/2014,IJ00037102,-40.64,ESPO,
East Lindsey District Council,http://statistics.data.gov.uk/id/local-authority/32UC,Economic & Tourism,Gas,02/10/2014,IJ00037102,75.69,ESPO,
East Lindsey District Council,http://statistics.data.gov.uk/id/local-authority/32UC,Hsg Private Sector TL,Other Income,02/10/2014,IJ00037033,-429.50,OBAM STAIRLIFTS,
East Lindsey District Council,http://statistics.data.gov.uk/id/local-authority/32UC,Hsg Private Sector TL,Grants and Contributions to Outside Bodies- No Service Recei,02/10/2014,IJ00037033,4810.40,OBAM STAIRLIFTS,
East Lindsey District Council,http://statistics.data.gov.uk/id/local-authority/32UC,Theatre Manager,Performers and Entertainers Fees,02/10/2014,IJ00036997,6376.37,BILLY FURY STORY LTD,
East Lindsey District Council,http://statistics.data.gov.uk/id/local-authority/32UC,Theatre Manager,Performers and Entertainers Fees,02/10/2014,IJ00036997,-210.00,BILLY FURY STORY LTD,
East Lindsey District Council,http://statistics.data.gov.uk/id/local-authority/32UC,Theatre Manager,Performers and Entertainers Fees,02/10/2014,IJ00036999,3587.78,ORIGINAL ENTERTAINMENT PROGRAMMING LTD,
East Lindsey District Council,http://statistics.data.gov.uk/id/local-authority/32UC,Neighbourhood Services,Professional & Contractors Fees,02/10/2014,IJ00036966,700.00,VEOLIA ES (UK) LIMITED,
East Lindsey District Council,http://statistics.data.gov.uk/id/local-authority/32UC,Waste Services Manager,Insurance,02/10/2014,IJ00037134,2362.31,TRAVELERS INSURANCE COMPANY LIMITED,
East Lindsey District Council,http://statistics.data.gov.uk/id/local-authority/32UC,Neighbourhood Services,Insurance,02/10/2014,IJ00037134,8000.00,TRAVELERS INSURANCE COMPANY LIMITED,
East Lindsey District Council,http://statistics.data.gov.uk/id/local-authority/32UC,Waste Services Manager,Insurance,02/10/2014,IJ00037117,200.00,TRAVELERS INSURANCE COMPANY LIMITED,
East Lindsey District Council,http://statistics.data.gov.uk/id/local-authority/32UC,Theatre Manager,Insurance,02/10/2014,IJ00037117,450.00,TRAVELERS INSURANCE COMPANY LIMITED,
East Lindsey District Council,http://statistics.data.gov.uk/id/local-authority/32UC,Neighbourhood Services,Insurance,02/10/2014,IJ00037117,428.08,TRAVELERS INSURANCE COMPANY LIMITED,
East Lindsey District Council,http://statistics.data.gov.uk/id/local-authority/32UC,TL Property,Insurance,02/10/2014,IJ00037117,861.20,TRAVELERS INSURANCE COMPANY LIMITED,
East Lindsey District Council,http://statistics.data.gov.uk/id/local-authority/32UC,TL Property,Buildings Maintenance - Responsive,02/10/2014,IJ00037086,1525.00,VERE BROS (CONTRACTORS) LTD,
East Lindsey District Council,http://statistics.data.gov.uk/id/local-authority/32UC,Enforcement Team Leader,Payments to Bodies in Respect of Income Collected,02/10/2014,IJ00036967,1916.07,INNES ENGLAND COMMERCIAL PROPERTY,
East Lindsey District Council,http://statistics.data.gov.uk/id/local-authority/32UC,Hsg Private Sector TL,Other Income,02/10/2014,IJ00037034,-376.25,DENNISS & MARWOOD,
East Lindsey District Council,http://statistics.data.gov.uk/id/local-authority/32UC,Hsg Private Sector TL,Grants and Contributions to Outside Bodies- No Service Recei,02/10/2014,IJ00037034,4213.95,DENNISS & MARWOOD,
East Lindsey District Council,http://statistics.data.gov.uk/id/local-authority/32UC,Hsg Private Sector TL,Other Income,02/10/2014,IJ00037037,-670.68,DENNISS & MARWOOD,
East Lindsey District Council,http://statistics.data.gov.uk/id/local-authority/32UC,Hsg Private Sector TL,Grants and Contributions to Outside Bodies- No Service Recei,02/10/2014,IJ00037037,7511.62,DENNISS & MARWOOD,
East Lindsey District Council,http://statistics.data.gov.uk/id/local-authority/32UC,Information Technology,Computer Software Licence Costs,02/10/2014,IJ00036977,6994.53,EXPERIAN LTD,
East Lindsey District Council,http://statistics.data.gov.uk/id/local-authority/32UC,Cultural & Related Services,Professional & Contractors Fees,02/10/2014,IJ00036988,2400.00,LAVA,
East Lindsey District Council,http://statistics.data.gov.uk/id/local-authority/32UC,"Performance, Governance & Commissioning",Grants and Contributions to Outside Bodies- No Service Recei,02/10/2014,IJ00036928,1000.00,SKEGNESS SILVER BAND,
East Lindsey District Council,http://statistics.data.gov.uk/id/local-authority/32UC,Leisure Operations,Buildings Maintenance - Responsive,02/10/2014,IJ00037093,638.00,H20 SERVICING LTD,
East Lindsey District Council,http://statistics.data.gov.uk/id/local-authority/32UC,Corporate Accounting,Compass Point Business Services,02/10/2014,IJ00037012,423015.25,COMPASS POINT BUSINESS SERVICES,
East Lindsey District Council,http://statistics.data.gov.uk/id/local-authority/32UC,Information Technology,External Printing and Design Costs,02/10/2014,IJ00037032,12665.34,COMPASS POINT BUSINESS SERVICES,
East Lindsey District Council,http://statistics.data.gov.uk/id/local-authority/32UC,Cultural & Related Services,Other Employee Expenses,02/10/2014,IJ00037126,44.00,COMPASS POINT BUSINESS SERVICES,
East Lindsey District Council,http://statistics.data.gov.uk/id/local-authority/32UC,Theatre Manager,Other Employee Expenses,02/10/2014,IJ00037126,25.00,COMPASS POINT BUSINESS SERVICES,
East Lindsey District Council,http://statistics.data.gov.uk/id/local-authority/32UC,Theatre Manager,Other Employee Expenses,02/10/2014,IJ00037126,300.00,COMPASS POINT BUSINESS SERVICES,
East Lindsey District Council,http://statistics.data.gov.uk/id/local-authority/32UC,Leisure Operations,Other Employee Expenses,02/10/2014,IJ00037126,157.00,COMPASS POINT BUSINESS SERVICES,
East Lindsey District Council,http://statistics.data.gov.uk/id/local-authority/32UC,Cultural & Related Services,Other Employee Expenses,02/10/2014,IJ00037126,44.00,COMPASS POINT BUSINESS SERVICES,
East Lindsey District Council,http://statistics.data.gov.uk/id/local-authority/32UC,Cultural & Related Services,Other Employee Expenses,02/10/2014,IJ00037126,88.00,COMPASS POINT BUSINESS SERVICES,
East Lindsey District Council,http://statistics.data.gov.uk/id/local-authority/32UC,Economic & Tourism,Other Employee Expenses,02/10/2014,IJ00037126,25.00,COMPASS POINT BUSINESS SERVICES,
East Lindsey District Council,http://statistics.data.gov.uk/id/local-authority/32UC,Corporate Management,Other Employee Expenses,02/10/2014,IJ00037126,25.00,COMPASS POINT BUSINESS SERVICES,
East Lindsey District Council,http://statistics.data.gov.uk/id/local-authority/32UC,Leisure Operations,Other Employee Expenses,02/10/2014,IJ00037126,25.00,COMPASS POINT BUSINESS SERVICES,
East Lindsey District Council,http://statistics.data.gov.uk/id/local-authority/32UC,"Performance, Governance & Commissioning",Other Employee Expenses,02/10/2014,IJ00037126,25.00,COMPASS POINT BUSINESS SERVICES,
East Lindsey District Council,http://statistics.data.gov.uk/id/local-authority/32UC,Hsg Private Sector TL,Other Employee Expenses,02/10/2014,IJ00037126,44.00,COMPASS POINT BUSINESS SERVICES,
East Lindsey District Council,http://statistics.data.gov.uk/id/local-authority/32UC,"Performance, Governance & Commissioning",Other Employee Expenses,02/10/2014,IJ00037126,25.00,COMPASS POINT BUSINESS SERVICES,
East Lindsey District Council,http://statistics.data.gov.uk/id/local-authority/32UC,Economic & Tourism,Other Employee Expenses,02/10/2014,IJ00037126,50.00,COMPASS POINT BUSINESS SERVICES,
East Lindsey District Council,http://statistics.data.gov.uk/id/local-authority/32UC,TL Property,Other Employee Expenses,02/10/2014,IJ00037126,25.00,COMPASS POINT BUSINESS SERVICES,
East Lindsey District Council,http://statistics.data.gov.uk/id/local-authority/32UC,TL Property,Other Employee Expenses,02/10/2014,IJ00037126,50.00,COMPASS POINT BUSINESS SERVICES,
East Lindsey District Council,http://statistics.data.gov.uk/id/local-authority/32UC,Leisure Operations,Other Employee Expenses,02/10/2014,IJ00037126,44.00,COMPASS POINT BUSINESS SERVICES,
East Lindsey District Council,http://statistics.data.gov.uk/id/local-authority/32UC,Leisure Operations,Other Employee Expenses,02/10/2014,IJ00037126,44.00,COMPASS POINT BUSINESS SERVICES,
East Lindsey District Council,http://statistics.data.gov.uk/id/local-authority/32UC,Neighbourhood Services,Other Employee Expenses,02/10/2014,IJ00037126,150.00,COMPASS POINT BUSINESS SERVICES,
East Lindsey District Council,http://statistics.data.gov.uk/id/local-authority/32UC,Neighbourhood Services,Other Employee Expenses,02/10/2014,IJ00037126,50.00,COMPASS POINT BUSINESS SERVICES,
East Lindsey District Council,http://statistics.data.gov.uk/id/local-authority/32UC,Neighbourhood Services,Other Employee Expenses,02/10/2014,IJ00037126,75.00,COMPASS POINT BUSINESS SERVICES,
East Lindsey District Council,http://statistics.data.gov.uk/id/local-authority/32UC,Neighbourhood Services,Other Employee Expenses,02/10/2014,IJ00037126,25.00,COMPASS POINT BUSINESS SERVICES,
East Lindsey District Council,http://statistics.data.gov.uk/id/local-authority/32UC,Neighbourhood Services,Other Employee Expenses,02/10/2014,IJ00037126,325.00,COMPASS POINT BUSINESS SERVICES,
East Lindsey District Council,http://statistics.data.gov.uk/id/local-authority/32UC,Neighbourhood Services,Other Employee Expenses,02/10/2014,IJ00037126,75.00,COMPASS POINT BUSINESS SERVICES,
East Lindsey District Council,http://statistics.data.gov.uk/id/local-authority/32UC,Neighbourhood Services,Other Employee Expenses,02/10/2014,IJ00037126,25.00,COMPASS POINT BUSINESS SERVICES,
East Lindsey District Council,http://statistics.data.gov.uk/id/local-authority/32UC,Neighbourhood Services,Other Employee Expenses,02/10/2014,IJ00037126,25.00,COMPASS POINT BUSINESS SERVICES,
East Lindsey District Council,http://statistics.data.gov.uk/id/local-authority/32UC,Neighbourhood Services,Other Employee Expenses,02/10/2014,IJ00037126,50.00,COMPASS POINT BUSINESS SERVICES,
East Lindsey District Council,http://statistics.data.gov.uk/id/local-authority/32UC,Cultural & Related Services,Other Employee Expenses,02/10/2014,IJ00037126,44.00,COMPASS POINT BUSINESS SERVICES,
East Lindsey District Council,http://statistics.data.gov.uk/id/local-authority/32UC,Hsg Advice & Homelessness TL,Other Employee Expenses,02/10/2014,IJ00037126,88.00,COMPASS POINT BUSINESS SERVICES,
East Lindsey District Council,http://statistics.data.gov.uk/id/local-authority/32UC,Theatre Manager,Advertising - Events,02/10/2014,IJ00037116,25.00,COMPASS POINT BUSINESS SERVICES,
East Lindsey District Council,http://statistics.data.gov.uk/id/local-authority/32UC,Leisure Operations,Furniture and Equipment,02/10/2014,IJ00037116,80.40,COMPASS POINT BUSINESS SERVICES,
East Lindsey District Council,http://statistics.data.gov.uk/id/local-authority/32UC,Information Technology,Telephones,02/10/2014,IJ00037116,287.56,COMPASS POINT BUSINESS SERVICES,
East Lindsey District Council,http://statistics.data.gov.uk/id/local-authority/32UC,Leisure Operations,Furniture and Equipment,02/10/2014,IJ00037116,80.40,COMPASS POINT BUSINESS SERVICES,
East Lindsey District Council,http://statistics.data.gov.uk/id/local-authority/32UC,Information Technology,Computer Hardware Purchase,02/10/2014,IJ00037116,50.00,COMPASS POINT BUSINESS SERVICES,
East Lindsey District Council,http://statistics.data.gov.uk/id/local-authority/32UC,Information Technology,Computer Hardware Maintenance,02/10/2014,IJ00037116,110.88,COMPASS POINT BUSINESS SERVICES,
East Lindsey District Council,http://statistics.data.gov.uk/id/local-authority/32UC,Information Technology,Computer Hardware Purchase,02/10/2014,IJ00037116,173.32,COMPASS POINT BUSINESS SERVICES,
East Lindsey District Council,http://statistics.data.gov.uk/id/local-authority/32UC,Leisure Operations,Court Costs,02/10/2014,IJ00037116,300.00,COMPASS POINT BUSINESS SERVICES,
East Lindsey District Council,http://statistics.data.gov.uk/id/local-authority/32UC,Economic & Tourism,Court Costs,02/10/2014,IJ00037116,550.00,COMPASS POINT BUSINESS SERVICES,
East Lindsey District Council,http://statistics.data.gov.uk/id/local-authority/32UC,Hsg Advice & Homelessness TL,Court Costs,02/10/2014,IJ00037116,110.00,COMPASS POINT BUSINESS SERVICES,
East Lindsey District Council,http://statistics.data.gov.uk/id/local-authority/32UC,Hsg Private Sector TL,Court Costs,02/10/2014,IJ00037116,80.00,COMPASS POINT BUSINESS SERVICES,
East Lindsey District Council,http://statistics.data.gov.uk/id/local-authority/32UC,Hsg Private Sector TL,Furniture and Equipment,02/10/2014,IJ00037116,112.49,COMPASS POINT BUSINESS SERVICES,
East Lindsey District Council,http://statistics.data.gov.uk/id/local-authority/32UC,Economic & Tourism,Court Costs,02/10/2014,IJ00037116,185.00,COMPASS POINT BUSINESS SERVICES,
East Lindsey District Council,http://statistics.data.gov.uk/id/local-authority/32UC,Leisure Operations,Court Costs,02/10/2014,IJ00037116,25.00,COMPASS POINT BUSINESS SERVICES,
East Lindsey District Council,http://statistics.data.gov.uk/id/local-authority/32UC,Leisure Operations,Court Costs,02/10/2014,IJ00037116,25.00,COMPASS POINT BUSINESS SERVICES,
East Lindsey District Council,http://statistics.data.gov.uk/id/local-authority/32UC,Hsg Private Sector TL,Grants and Contributions to Outside Bodies- No Service Recei,02/10/2014,IJ00037043,5272.54,HARRIS BUILDING SERVICES,
East Lindsey District Council,http://statistics.data.gov.uk/id/local-authority/32UC,Economic & Tourism,Professional & Contractors Fees,02/10/2014,IJ00037011,11520.00,GREENBOROUGH MANAGEMENT LIMITED,
East Lindsey District Council,http://statistics.data.gov.uk/id/local-authority/32UC,Theatre Manager,Buildings Maintenance - Programmed,02/10/2014,IJ00037088,770.00,h-TE WESTERN AUTOMATIC,
East Lindsey District Council,http://statistics.data.gov.uk/id/local-authority/32UC,Neighbourhood Services,Materials and Consumables,02/10/2014,IJ00037098,850.08,J TOMLINSON LTD,
East Lindsey District Council,http://statistics.data.gov.uk/id/local-authority/32UC,Leisure Operations,Staff Training Expenses,02/10/2014,IJ00036962,1500.00,JOHNSON TRAINING,
East Lindsey District Council,http://statistics.data.gov.uk/id/local-authority/32UC,Neighbourhood Services,Water and Sewerage Charges,02/10/2014,IJ00037060,1671.59,ANGLIAN WATER,
East Lindsey District Council,http://statistics.data.gov.uk/id/local-authority/32UC,TL Property,Water and Sewerage Charges,02/10/2014,IJ00037060,161.19,ANGLIAN WATER,
East Lindsey District Council,http://statistics.data.gov.uk/id/local-authority/32UC,Neighbourhood Services,Water and Sewerage Charges,02/10/2014,IJ00037062,792.99,ANGLIAN WATER,
East Lindsey District Council,http://statistics.data.gov.uk/id/local-authority/32UC,Economic & Tourism,Water and Sewerage Charges,02/10/2014,IJ00037063,10879.04,ANGLIAN WATER,
East Lindsey District Council,http://statistics.data.gov.uk/id/local-authority/32UC,Economic & Tourism,Professional & Contractors Fees,02/10/2014,IJ00036926,2100.00,SKILLSREACH,
East Lindsey District Council,http://statistics.data.gov.uk/id/local-authority/32UC,Economic & Tourism,Professional & Contractors Fees,02/10/2014,IJ00036930,2400.00,SKILLSREACH,
East Lindsey District Council,http://statistics.data.gov.uk/id/local-authority/32UC,Theatre Manager,Buildings Maintenance - Programmed,02/10/2014,IJ00037094,35280.15,AUDIENCE SYSTEMS LTD,
East Lindsey District Council,http://statistics.data.gov.uk/id/local-authority/32UC,Waste Services Manager,Telephones,02/10/2014,IJ00037124,11.00,DAISY COMMUNICATIONS LTD,
East Lindsey District Council,http://statistics.data.gov.uk/id/local-authority/32UC,Enforcement Team Leader,Other agencies,02/10/2014,IJ00037124,23.67,DAISY COMMUNICATIONS LTD,
East Lindsey District Council,http://statistics.data.gov.uk/id/local-authority/32UC,Customer Services Manager,Telephones,02/10/2014,IJ00037124,43.78,DAISY COMMUNICATIONS LTD,
East Lindsey District Council,http://statistics.data.gov.uk/id/local-authority/32UC,Theatre Manager,Telephones,02/10/2014,IJ00037124,54.95,DAISY COMMUNICATIONS LTD,
East Lindsey District Council,http://statistics.data.gov.uk/id/local-authority/32UC,Hsg Private Sector TL,Telephones,02/10/2014,IJ00037124,11.04,DAISY COMMUNICATIONS LTD,
East Lindsey District Council,http://statistics.data.gov.uk/id/local-authority/32UC,Enforcement Team Leader,Telephones,02/10/2014,IJ00037124,10.99,DAISY COMMUNICATIONS LTD,
East Lindsey District Council,http://statistics.data.gov.uk/id/local-authority/32UC,Building Control,Telephones,02/10/2014,IJ00037124,47.41,DAISY COMMUNICATIONS LTD,
East Lindsey District Council,http://statistics.data.gov.uk/id/local-authority/32UC,Economic & Tourism,Grants and Contributions to Outside Bodies- No Service Recei,02/10/2014,IJ00037124,13.62,DAISY COMMUNICATIONS LTD,
East Lindsey District Council,http://statistics.data.gov.uk/id/local-authority/32UC,Economic & Tourism,Telephones,02/10/2014,IJ00037124,28.15,DAISY COMMUNICATIONS LTD,
East Lindsey District Council,http://statistics.data.gov.uk/id/local-authority/32UC,Corporate Management,Telephones,02/10/2014,IJ00037124,1732.41,DAISY COMMUNICATIONS LTD,
East Lindsey District Council,http://statistics.data.gov.uk/id/local-authority/32UC,Information Technology,Telephones,02/10/2014,IJ00037124,83.92,DAISY COMMUNICATIONS LTD,
East Lindsey District Council,http://statistics.data.gov.uk/id/local-authority/32UC,Information Technology,Telephones,02/10/2014,IJ00037124,21.98,DAISY COMMUNICATIONS LTD,
East Lindsey District Council,http://statistics.data.gov.uk/id/local-authority/32UC,Leisure Operations,Telephones,02/10/2014,IJ00037124,149.94,DAISY COMMUNICATIONS LTD,
East Lindsey District Council,http://statistics.data.gov.uk/id/local-authority/32UC,Leisure Operations,Telephones,02/10/2014,IJ00037124,59.96,DAISY COMMUNICATIONS LTD,
East Lindsey District Council,http://statistics.data.gov.uk/id/local-authority/32UC,Economic & Tourism,Telephones,02/10/2014,IJ00037124,350.13,DAISY COMMUNICATIONS LTD,
East Lindsey District Council,http://statistics.data.gov.uk/id/local-authority/32UC,Economic & Tourism,Telephones,02/10/2014,IJ00037124,305.35,DAISY COMMUNICATIONS LTD,
East Lindsey District Council,http://statistics.data.gov.uk/id/local-authority/32UC,Leisure Operations,Telephones,02/10/2014,IJ00037124,35.59,DAISY COMMUNICATIONS LTD,
East Lindsey District Council,http://statistics.data.gov.uk/id/local-authority/32UC,Leisure Operations,Telephones,02/10/2014,IJ00037124,21.98,DAISY COMMUNICATIONS LTD,
East Lindsey District Council,http://statistics.data.gov.uk/id/local-authority/32UC,Leisure Operations,Telephones,02/10/2014,IJ00037124,53.41,DAISY COMMUNICATIONS LTD,
East Lindsey District Council,http://statistics.data.gov.uk/id/local-authority/32UC,TL Property,Telephones,02/10/2014,IJ00037124,10.99,DAISY COMMUNICATIONS LTD,
East Lindsey District Council,http://statistics.data.gov.uk/id/local-authority/32UC,TL Property,Telephones,02/10/2014,IJ00037124,10.99,DAISY COMMUNICATIONS LTD,
East Lindsey District Council,http://statistics.data.gov.uk/id/local-authority/32UC,TL Property,Telephones,02/10/2014,IJ00037124,22.51,DAISY COMMUNICATIONS LTD,
East Lindsey District Council,http://statistics.data.gov.uk/id/local-authority/32UC,TL Property,Telephones,02/10/2014,IJ00037124,10.99,DAISY COMMUNICATIONS LTD,
East Lindsey District Council,http://statistics.data.gov.uk/id/local-authority/32UC,Leisure Operations,Telephones,02/10/2014,IJ00037124,22.27,DAISY COMMUNICATIONS LTD,
East Lindsey District Council,http://statistics.data.gov.uk/id/local-authority/32UC,Leisure Operations,Telephones,02/10/2014,IJ00037124,37.20,DAISY COMMUNICATIONS LTD,
East Lindsey District Council,http://statistics.data.gov.uk/id/local-authority/32UC,Neighbourhood Services,Telephones,02/10/2014,IJ00037124,10.99,DAISY COMMUNICATIONS LTD,
East Lindsey District Council,http://statistics.data.gov.uk/id/local-authority/32UC,TL Property,Telephones,02/10/2014,IJ00037124,12.90,DAISY COMMUNICATIONS LTD,
East Lindsey District Council,http://statistics.data.gov.uk/id/local-authority/32UC,TL Property,Telephones,02/10/2014,IJ00037124,33.05,DAISY COMMUNICATIONS LTD,
East Lindsey District Council,http://statistics.data.gov.uk/id/local-authority/32UC,TL Property,Telephones,02/10/2014,IJ00037124,10.99,DAISY COMMUNICATIONS LTD,
East Lindsey District Council,http://statistics.data.gov.uk/id/local-authority/32UC,Theatre Manager,Telephones,02/10/2014,IJ00037124,47.58,DAISY COMMUNICATIONS LTD,
East Lindsey District Council,http://statistics.data.gov.uk/id/local-authority/32UC,TL Property,Telephones,02/10/2014,IJ00037124,33.00,DAISY COMMUNICATIONS LTD,
East Lindsey District Council,http://statistics.data.gov.uk/id/local-authority/32UC,Corporate Management,Telephones,02/10/2014,IJ00037124,10.99,DAISY COMMUNICATIONS LTD,
East Lindsey District Council,http://statistics.data.gov.uk/id/local-authority/32UC,TL Property,Telephones,02/10/2014,IJ00037124,32.96,DAISY COMMUNICATIONS LTD,
East Lindsey District Council,http://statistics.data.gov.uk/id/local-authority/32UC,Neighbourhood Services,Telephones,02/10/2014,IJ00037124,10.99,DAISY COMMUNICATIONS LTD,
East Lindsey District Council,http://statistics.data.gov.uk/id/local-authority/32UC,Economic & Tourism,Other Miscellaneous Expenses,02/10/2014,IJ00037064,250.00,G4S SECURE SOLUTIONS (UK) LTD,
East Lindsey District Council,http://statistics.data.gov.uk/id/local-authority/32UC,Economic & Tourism,Other Miscellaneous Expenses,02/10/2014,IJ00037064,250.00,G4S SECURE SOLUTIONS (UK) LTD,
East Lindsey District Council,http://statistics.data.gov.uk/id/local-authority/32UC,TL Property,Professional & Contractors Fees,02/10/2014,IJ00037073,250.00,G4S SECURE SOLUTIONS (UK) LTD,
East Lindsey District Council,http://statistics.data.gov.uk/id/local-authority/32UC,TL Property,Professional & Contractors Fees,02/10/2014,IJ00037073,250.00,G4S SECURE SOLUTIONS (UK) LTD,
East Lindsey District Council,http://statistics.data.gov.uk/id/local-authority/32UC,TL Property,Professional & Contractors Fees,02/10/2014,IJ00037073,250.00,G4S SECURE SOLUTIONS (UK) LTD,
East Lindsey District Council,http://statistics.data.gov.uk/id/local-authority/32UC,TL Property,Professional & Contractors Fees,02/10/2014,IJ00037073,250.00,G4S SECURE SOLUTIONS (UK) LTD,
East Lindsey District Council,http://statistics.data.gov.uk/id/local-authority/32UC,Neighbourhood Services,Furniture and Equipment,02/10/2014,IJ00036922,5960.00,THE TRACTOR SHOP,
East Lindsey District Council,http://statistics.data.gov.uk/id/local-authority/32UC,Waste Services Manager,Furniture and Equipment,02/10/2014,IJ00037114,3750.00,THE TRACTOR SHOP,
East Lindsey District Council,http://statistics.data.gov.uk/id/local-authority/32UC,Waste Services Manager,Fuel & Oil,02/10/2014,IJ00036981,1080.00,BRENNTAG UK LIMITED,
East Lindsey District Council,http://statistics.data.gov.uk/id/local-authority/32UC,Neighbourhood Services,Materials and Consumables,02/10/2014,IJ00036980,719.30,GELPACK EXCELSIOR LTD,
East Lindsey District Council,http://statistics.data.gov.uk/id/local-authority/32UC,"Performance, Governance & Commissioning",Grants and Contributions to Outside Bodies- No Service Recei,02/10/2014,IJ00037009,2133.00,HORNCASTLE TOWN FOOTBALL CLUB,
East Lindsey District Council,http://statistics.data.gov.uk/id/local-authority/32UC,Leisure Operations,Payments to Bodies in Respect of Income Collected,02/10/2014,IJ00036973,4000.00,LK2 Architects Ltd,
East Lindsey District Council,http://statistics.data.gov.uk/id/local-authority/32UC,Theatre Manager,Performers and Entertainers Fees,02/10/2014,IJ00036998,8000.00,Jane McDonald Ltd,
East Lindsey District Council,http://statistics.data.gov.uk/id/local-authority/32UC,Waste Services Manager,Agency Staff,02/10/2014,IJ00036968,1586.31,BIBBY FACTORS YORKSHIRE LIMITED,
East Lindsey District Council,http://statistics.data.gov.uk/id/local-authority/32UC,Waste Services Manager,Agency Staff,02/10/2014,IJ00037075,1510.26,BIBBY FACTORS YORKSHIRE LIMITED,
East Lindsey District Council,http://statistics.data.gov.uk/id/local-authority/32UC,Hsg Private Sector TL,Other Income,02/10/2014,IJ00037045,-340.79,PREMIER SERVICE AND INSTALLATION,
East Lindsey District Council,http://statistics.data.gov.uk/id/local-authority/32UC,Hsg Private Sector TL,Grants and Contributions to Outside Bodies- No Service Recei,02/10/2014,IJ00037045,3816.87,PREMIER SERVICE AND INSTALLATION,
East Lindsey District Council,http://statistics.data.gov.uk/id/local-authority/32UC,Economic & Tourism,Other Miscellaneous Expenses,02/10/2014,IJ00037013,4816.95,Michael A Singh,
East Lindsey District Council,http://statistics.data.gov.uk/id/local-authority/32UC,Hsg Private Sector TL,Grants and Contributions to Outside Bodies- No Service Recei,02/10/2014,IJ00037041,3139.92,Plumb Line,
East Lindsey District Council,http://statistics.data.gov.uk/id/local-authority/32UC,Cultural & Related Services,Voluntary associations,03/10/2014,IJ00037139,7173.39,WOODHALL SPA COTTAGE MUSEUM,
East Lindsey District Council,http://statistics.data.gov.uk/id/local-authority/32UC,Revenues & Benefits,Other Miscellaneous Expenses,08/10/2014,IJ00037263,3703.45,ALLPAY NET LTD,
East Lindsey District Council,http://statistics.data.gov.uk/id/local-authority/32UC,Revenues & Benefits,Other Miscellaneous Expenses,08/10/2014,IJ00037263,84.70,ALLPAY NET LTD,
East Lindsey District Council,http://statistics.data.gov.uk/id/local-authority/32UC,Enforcement Team Leader,Other Employee Expenses,08/10/2014,IJ00037235,792.00,Disclosure and Barring Service,
East Lindsey District Council,http://statistics.data.gov.uk/id/local-authority/32UC,Economic & Tourism,Professional & Contractors Fees,09/10/2014,IJ00037228,2533.42,SID DENNIS & SONS LTD,
East Lindsey District Council,http://statistics.data.gov.uk/id/local-authority/32UC,Neighbourhood Services,Professional & Contractors Fees,09/10/2014,IJ00037351,560.00,SID DENNIS & SONS LTD,
East Lindsey District Council,http://statistics.data.gov.uk/id/local-authority/32UC,Economic & Tourism,Buildings Maintenance - Responsive,09/10/2014,IJ00037326,35.42,HARLITE INSTALLATIONS LTD,
East Lindsey District Council,http://statistics.data.gov.uk/id/local-authority/32UC,TL Property,Buildings Maintenance - Responsive,09/10/2014,IJ00037326,78.42,HARLITE INSTALLATIONS LTD,
East Lindsey District Council,http://statistics.data.gov.uk/id/local-authority/32UC,TL Property,Buildings Maintenance - Responsive,09/10/2014,IJ00037326,18.02,HARLITE INSTALLATIONS LTD,
East Lindsey District Council,http://statistics.data.gov.uk/id/local-authority/32UC,TL Property,Buildings Maintenance - Responsive,09/10/2014,IJ00037326,98.49,HARLITE INSTALLATIONS LTD,
East Lindsey District Council,http://statistics.data.gov.uk/id/local-authority/32UC,TL Property,Buildings Maintenance - Responsive,09/10/2014,IJ00037326,92.19,HARLITE INSTALLATIONS LTD,
East Lindsey District Council,http://statistics.data.gov.uk/id/local-authority/32UC,TL Property,Buildings Maintenance - Responsive,09/10/2014,IJ00037326,132.25,HARLITE INSTALLATIONS LTD,
East Lindsey District Council,http://statistics.data.gov.uk/id/local-authority/32UC,TL Property,Buildings Maintenance - Responsive,09/10/2014,IJ00037326,95.40,HARLITE INSTALLATIONS LTD,
East Lindsey District Council,http://statistics.data.gov.uk/id/local-authority/32UC,TL Property,Buildings Maintenance - Responsive,09/10/2014,IJ00037326,435.46,HARLITE INSTALLATIONS LTD,
East Lindsey District Council,http://statistics.data.gov.uk/id/local-authority/32UC,Economic & Tourism,Materials and Consumables,09/10/2014,IJ00037180,1764.00,JACKSON BUILDING CENTRES LTD,
East Lindsey District Council,http://statistics.data.gov.uk/id/local-authority/32UC,Theatre Manager,Postages,09/10/2014,IJ00037145,3300.33,MORTONS PRINT LIMITED,
East Lindsey District Council,http://statistics.data.gov.uk/id/local-authority/32UC,Leisure Operations,Buildings Maintenance - Responsive,09/10/2014,IJ00037311,897.11,ABACUS LIGHTING LIMITED,
East Lindsey District Council,http://statistics.data.gov.uk/id/local-authority/32UC,Hsg Private Sector TL,Other Income,09/10/2014,IJ00037334,-364.11,COTTS BUILDERS AND CONTRACTORS,
East Lindsey District Council,http://statistics.data.gov.uk/id/local-authority/32UC,Hsg Private Sector TL,Grants and Contributions to Outside Bodies- No Service Recei,09/10/2014,IJ00037334,4078.01,COTTS BUILDERS AND CONTRACTORS,
East Lindsey District Council,http://statistics.data.gov.uk/id/local-authority/32UC,Cultural & Related Services,Grants and Contributions- Where a Service is Received,09/10/2014,IJ00037359,1901.00,NOTTINGHAMSHIRE COUNTY COUNCIL,
East Lindsey District Council,http://statistics.data.gov.uk/id/local-authority/32UC,Enforcement Team Leader,Stationery,09/10/2014,IJ00037365,1392.00,PAPERWORK UK LTD,
East Lindsey District Council,http://statistics.data.gov.uk/id/local-authority/32UC,Corporate Accounting,Professional & Contractors Fees,09/10/2014,IJ00037327,2448.33,THE RISK FACTOR LTD,
East Lindsey District Council,http://statistics.data.gov.uk/id/local-authority/32UC,Cultural & Related Services,Furniture and Equipment,09/10/2014,IJ00037322,1385.93,SEYMOUR & CASTLE LTD,
East Lindsey District Council,http://statistics.data.gov.uk/id/local-authority/32UC,Leisure Operations,Electricity,09/10/2014,IJ00037312,2271.36,SOUTHERN ELECTRIC PLC,
East Lindsey District Council,http://statistics.data.gov.uk/id/local-authority/32UC,Cultural & Related Services,Professional & Contractors Fees,09/10/2014,IJ00037142,3200.00,BRACKENBOROUGH LIMITED,
East Lindsey District Council,http://statistics.data.gov.uk/id/local-authority/32UC,Economic & Tourism,Agency Staff,09/10/2014,IJ00037208,73.50,WORKFORCE UNLIMITED,
East Lindsey District Council,http://statistics.data.gov.uk/id/local-authority/32UC,Economic & Tourism,Agency Staff,09/10/2014,IJ00037208,997.15,WORKFORCE UNLIMITED,
East Lindsey District Council,http://statistics.data.gov.uk/id/local-authority/32UC,Enforcement Team Leader,Payments to Bodies in Respect of Income Collected,09/10/2014,IJ00037203,7853.46,TESCOS STORES LTD,
East Lindsey District Council,http://statistics.data.gov.uk/id/local-authority/32UC,Corporate Management,Postages,09/10/2014,IJ00037272,9000.00,NEOPOST LTD,
East Lindsey District Council,http://statistics.data.gov.uk/id/local-authority/32UC,BALANCE  SHEET,VAT Customs and Excise,09/10/2014,IJ00037166,1080.77,JACOBS,
East Lindsey District Council,http://statistics.data.gov.uk/id/local-authority/32UC,Enforcement Team Leader,Computer Software Licence Costs,09/10/2014,IJ00037147,3763.62,METRIC GROUP LTD,
East Lindsey District Council,http://statistics.data.gov.uk/id/local-authority/32UC,Enforcement Team Leader,Computer Software Licence Costs,09/10/2014,IJ00037148,3763.62,METRIC GROUP LTD,
East Lindsey District Council,http://statistics.data.gov.uk/id/local-authority/32UC,Corporate Management,Subscriptions to Organisations and Other Bodies,09/10/2014,IJ00037363,650.00,CHRISTOPHER DONKIN,
East Lindsey District Council,http://statistics.data.gov.uk/id/local-authority/32UC,Corporate Management,Subscriptions to Organisations and Other Bodies,09/10/2014,IJ00037364,600.00,CHRISTOPHER DONKIN,
East Lindsey District Council,http://statistics.data.gov.uk/id/local-authority/32UC,Leisure Operations,Other Miscellaneous Expenses,09/10/2014,IJ00037175,463.49,DEE BEE,
East Lindsey District Council,http://statistics.data.gov.uk/id/local-authority/32UC,Leisure Operations,Purchase Of Goods For Resale,09/10/2014,IJ00037175,82.11,DEE BEE,
East Lindsey District Council,http://statistics.data.gov.uk/id/local-authority/32UC,Hsg Advice & Homelessness TL,Bed and Breakfast Accommodation (Homelessness Service),09/10/2014,IJ00037191,1000.00,BEESTON LODGE HOTEL,
East Lindsey District Council,http://statistics.data.gov.uk/id/local-authority/32UC,Cultural & Related Services,Performers and Entertainers Fees,09/10/2014,IJ00037360,500.00,SKEGNESS & WINTHORPE PCC,
East Lindsey District Council,http://statistics.data.gov.uk/id/local-authority/32UC,Leisure Operations,Purchase Of Goods For Resale,09/10/2014,IJ00037178,605.48,SRS LEISURE,
East Lindsey District Council,http://statistics.data.gov.uk/id/local-authority/32UC,Leisure Operations,Purchase Of Goods For Resale,09/10/2014,IJ00037361,663.48,SRS LEISURE,
East Lindsey District Council,http://statistics.data.gov.uk/id/local-authority/32UC,TL Property,Buildings Maintenance - Responsive,09/10/2014,IJ00037273,6093.92,VERE BROS (CONTRACTORS) LTD,
East Lindsey District Council,http://statistics.data.gov.uk/id/local-authority/32UC,Neighbourhood Services,Electricity,09/10/2014,IJ00037319,6.79,E.ON ENERGY,
East Lindsey District Council,http://statistics.data.gov.uk/id/local-authority/32UC,Enforcement Team Leader,Electricity,09/10/2014,IJ00037319,6.12,E.ON ENERGY,
East Lindsey District Council,http://statistics.data.gov.uk/id/local-authority/32UC,Enforcement Team Leader,Electricity,09/10/2014,IJ00037319,7.20,E.ON ENERGY,
East Lindsey District Council,http://statistics.data.gov.uk/id/local-authority/32UC,Enforcement Team Leader,Electricity,09/10/2014,IJ00037319,17.49,E.ON ENERGY,
East Lindsey District Council,http://statistics.data.gov.uk/id/local-authority/32UC,Enforcement Team Leader,Electricity,09/10/2014,IJ00037319,20.02,E.ON ENERGY,
East Lindsey District Council,http://statistics.data.gov.uk/id/local-authority/32UC,Enforcement Team Leader,Electricity,09/10/2014,IJ00037319,41.10,E.ON ENERGY,
East Lindsey District Council,http://statistics.data.gov.uk/id/local-authority/32UC,Enforcement Team Leader,Electricity,09/10/2014,IJ00037319,8.23,E.ON ENERGY,
East Lindsey District Council,http://statistics.data.gov.uk/id/local-authority/32UC,Enforcement Team Leader,Electricity,09/10/2014,IJ00037319,13.24,E.ON ENERGY,
East Lindsey District Council,http://statistics.data.gov.uk/id/local-authority/32UC,Enforcement Team Leader,Electricity,09/10/2014,IJ00037319,15.48,E.ON ENERGY,
East Lindsey District Council,http://statistics.data.gov.uk/id/local-authority/32UC,TL Property,Gas,09/10/2014,IJ00037319,1919.96,E.ON ENERGY,
East Lindsey District Council,http://statistics.data.gov.uk/id/local-authority/32UC,TL Property,Electricity,09/10/2014,IJ00037320,545.05,E.ON ENERGY,
East Lindsey District Council,http://statistics.data.gov.uk/id/local-authority/32UC,Neighbourhood Services,Electricity,09/10/2014,IJ00037320,45.07,E.ON ENERGY,
East Lindsey District Council,http://statistics.data.gov.uk/id/local-authority/32UC,Neighbourhood Services,Electricity,09/10/2014,IJ00037320,12.14,E.ON ENERGY,
East Lindsey District Council,http://statistics.data.gov.uk/id/local-authority/32UC,Enforcement Team Leader,Electricity,09/10/2014,IJ00037320,7.79,E.ON ENERGY,
East Lindsey District Council,http://statistics.data.gov.uk/id/local-authority/32UC,Enforcement Team Leader,Electricity,09/10/2014,IJ00037320,6.07,E.ON ENERGY,
East Lindsey District Council,http://statistics.data.gov.uk/id/local-authority/32UC,TL Property,Electricity,09/10/2014,IJ00037320,12.14,E.ON ENERGY,
East Lindsey District Council,http://statistics.data.gov.uk/id/local-authority/32UC,TL Property,Electricity,09/10/2014,IJ00037320,6.07,E.ON ENERGY,
East Lindsey District Council,http://statistics.data.gov.uk/id/local-authority/32UC,Environment Team Leader,Grants and Contributions to Outside Bodies- No Service Recei,09/10/2014,IJ00037197,7945.00,PELL PLANT HIRE LTD,
East Lindsey District Council,http://statistics.data.gov.uk/id/local-authority/32UC,Environment Team Leader,Grants and Contributions to Outside Bodies- No Service Recei,09/10/2014,IJ00037199,1190.00,PELL PLANT HIRE LTD,
East Lindsey District Council,http://statistics.data.gov.uk/id/local-authority/32UC,Environment Team Leader,Grants and Contributions to Outside Bodies- No Service Recei,09/10/2014,IJ00037202,5450.00,PELL PLANT HIRE LTD,
East Lindsey District Council,http://statistics.data.gov.uk/id/local-authority/32UC,Enforcement Team Leader,Payments to Bodies in Respect of Income Collected,09/10/2014,IJ00037160,1747.18,INNES ENGLAND COMMERCIAL PROPERTY,
East Lindsey District Council,http://statistics.data.gov.uk/id/local-authority/32UC,Development Control,Other Private Contractors,09/10/2014,IJ00037162,7711.17,LGS LIMITED,
East Lindsey District Council,http://statistics.data.gov.uk/id/local-authority/32UC,Leisure Operations,Professional & Contractors Fees,09/10/2014,IJ00037214,1220.00,Redacted Personal Information,REDACTED
East Lindsey District Council,http://statistics.data.gov.uk/id/local-authority/32UC,Customer Services Manager,Payments to Bodies in Respect of Income Collected,09/10/2014,IJ00037177,1451.67,NATIONAL EXPRESS CREDIT CONTROL DEPT,
East Lindsey District Council,http://statistics.data.gov.uk/id/local-authority/32UC,Customer Services Manager,Payments to Bodies in Respect of Income Collected,09/10/2014,IJ00037177,2005.08,NATIONAL EXPRESS CREDIT CONTROL DEPT,
East Lindsey District Council,http://statistics.data.gov.uk/id/local-authority/32UC,Customer Services Manager,Payments to Bodies in Respect of Income Collected,09/10/2014,IJ00037177,341.62,NATIONAL EXPRESS CREDIT CONTROL DEPT,
East Lindsey District Council,http://statistics.data.gov.uk/id/local-authority/32UC,Customer Services Manager,Payments to Bodies in Respect of Income Collected,09/10/2014,IJ00037177,9.99,NATIONAL EXPRESS CREDIT CONTROL DEPT,
East Lindsey District Council,http://statistics.data.gov.uk/id/local-authority/32UC,Neighbourhood Services,Materials and Consumables,09/10/2014,IJ00037187,1315.00,LUBBE & SONS (BULBS) LTD,
East Lindsey District Council,http://statistics.data.gov.uk/id/local-authority/32UC,Neighbourhood Services,Materials and Consumables,09/10/2014,IJ00037188,517.50,LUBBE & SONS (BULBS) LTD,
East Lindsey District Council,http://statistics.data.gov.uk/id/local-authority/32UC,Customer Services Manager,Payments to Bodies in Respect of Income Collected,09/10/2014,IJ00037174,814.40,WOODHALL SPA COTTAGE MUSEUM,
East Lindsey District Council,http://statistics.data.gov.uk/id/local-authority/32UC,Theatre Manager,Performers and Entertainers Fees,09/10/2014,IJ00037143,2227.17,MUSICTOOLS LTD,
East Lindsey District Council,http://statistics.data.gov.uk/id/local-authority/32UC,Hsg Private Sector TL,Grants and Contributions to Outside Bodies- No Service Recei,09/10/2014,IJ00037335,7007.26,THM CONSTRUCTION,
East Lindsey District Council,http://statistics.data.gov.uk/id/local-authority/32UC,Enforcement Team Leader,Other Miscellaneous Expenses,09/10/2014,IJ00037325,190.20,GRS SIGN CO LTD,
East Lindsey District Council,http://statistics.data.gov.uk/id/local-authority/32UC,Neighbourhood Services,Buildings Maintenance - Responsive,09/10/2014,IJ00037325,144.16,GRS SIGN CO LTD,
East Lindsey District Council,http://statistics.data.gov.uk/id/local-authority/32UC,Enforcement Team Leader,Buildings Maintenance - Responsive,09/10/2014,IJ00037325,66.03,GRS SIGN CO LTD,
East Lindsey District Council,http://statistics.data.gov.uk/id/local-authority/32UC,Enforcement Team Leader,Other Miscellaneous Expenses,09/10/2014,IJ00037325,1462.37,GRS SIGN CO LTD,
East Lindsey District Council,http://statistics.data.gov.uk/id/local-authority/32UC,Leisure Operations,External Printing and Design Costs,09/10/2014,IJ00037325,182.43,GRS SIGN CO LTD,
East Lindsey District Council,http://statistics.data.gov.uk/id/local-authority/32UC,Economic & Tourism,Other Miscellaneous Expenses,09/10/2014,IJ00037378,944.45,Rhubarb Theatre,
East Lindsey District Council,http://statistics.data.gov.uk/id/local-authority/32UC,Leisure Operations,Buildings Maintenance - Programmed,09/10/2014,IJ00037304,850.00,QUALSURV ENVIRONMENTAL SOLUTIONS LTD,
East Lindsey District Council,http://statistics.data.gov.uk/id/local-authority/32UC,Theatre Manager,Service Charge - General,09/10/2014,IJ00037268,774.64,BARLEY PUB COMPANY LTD,
East Lindsey District Council,http://statistics.data.gov.uk/id/local-authority/32UC,Theatre Manager,Service Charge - General,09/10/2014,IJ00037268,154.93,BARLEY PUB COMPANY LTD,
East Lindsey District Council,http://statistics.data.gov.uk/id/local-authority/32UC,Economic & Tourism,Other Miscellaneous Expenses,09/10/2014,IJ00037249,10000.00,VISITBRITAIN,
East Lindsey District Council,http://statistics.data.gov.uk/id/local-authority/32UC,Economic & Tourism,Other Miscellaneous Expenses,09/10/2014,IJ00037250,3600.00,VISITBRITAIN,
East Lindsey District Council,http://statistics.data.gov.uk/id/local-authority/32UC,Corporate Accounting,Professional & Contractors Fees,09/10/2014,IJ00037215,990.25,KINGS ARMOURED SECURITY SERVICES LTD,
East Lindsey District Council,http://statistics.data.gov.uk/id/local-authority/32UC,Economic & Tourism,Other Miscellaneous Expenses,09/10/2014,IJ00037226,1323.52,CARRIER DIRECT LIMITED,
East Lindsey District Council,http://statistics.data.gov.uk/id/local-authority/32UC,Communications Manager,Other Miscellaneous Expenses,09/10/2014,IJ00037164,5655.63,LEAFLET DISTRIBUTION SERVICES LTD,
East Lindsey District Council,http://statistics.data.gov.uk/id/local-authority/32UC,Enforcement Team Leader,Materials and Consumables,09/10/2014,IJ00037223,1640.00,A C PROPERTY MAINTENANCE LTD,
East Lindsey District Council,http://statistics.data.gov.uk/id/local-authority/32UC,Neighbourhood Services,Materials and Consumables,09/10/2014,IJ00037184,2596.26,GELPACK EXCELSIOR LTD,
East Lindsey District Council,http://statistics.data.gov.uk/id/local-authority/32UC,Neighbourhood Services,Materials and Consumables,09/10/2014,IJ00037185,1617.62,GELPACK EXCELSIOR LTD,
East Lindsey District Council,http://statistics.data.gov.uk/id/local-authority/32UC,Neighbourhood Services,Materials and Consumables,09/10/2014,IJ00037186,3350.59,GELPACK EXCELSIOR LTD,
East Lindsey District Council,http://statistics.data.gov.uk/id/local-authority/32UC,Economic & Tourism,Other Miscellaneous Expenses,09/10/2014,IJ00037220,787.50,Peter Thorpe Financial Consultant,
East Lindsey District Council,http://statistics.data.gov.uk/id/local-authority/32UC,Enforcement Team Leader,Fuel & Oil,09/10/2014,IJ00037266,325.55,AllStar Business Solutions Ltd,
East Lindsey District Council,http://statistics.data.gov.uk/id/local-authority/32UC,Neighbourhood Services,Fuel & Oil,09/10/2014,IJ00037266,2174.50,AllStar Business Solutions Ltd,
East Lindsey District Council,http://statistics.data.gov.uk/id/local-authority/32UC,Neighbourhood Services,Fuel & Oil,09/10/2014,IJ00037266,394.42,AllStar Business Solutions Ltd,
East Lindsey District Council,http://statistics.data.gov.uk/id/local-authority/32UC,Neighbourhood Services,Fuel & Oil,09/10/2014,IJ00037266,99.12,AllStar Business Solutions Ltd,
East Lindsey District Council,http://statistics.data.gov.uk/id/local-authority/32UC,Hsg Advice & Homelessness TL,Fuel & Oil,09/10/2014,IJ00037266,58.37,AllStar Business Solutions Ltd,
East Lindsey District Council,http://statistics.data.gov.uk/id/local-authority/32UC,Neighbourhood Services,Fuel & Oil,09/10/2014,IJ00037266,774.20,AllStar Business Solutions Ltd,
East Lindsey District Council,http://statistics.data.gov.uk/id/local-authority/32UC,Enforcement Team Leader,Fuel & Oil,09/10/2014,IJ00037267,186.84,AllStar Business Solutions Ltd,
East Lindsey District Council,http://statistics.data.gov.uk/id/local-authority/32UC,Neighbourhood Services,Fuel & Oil,09/10/2014,IJ00037267,2157.43,AllStar Business Solutions Ltd,
East Lindsey District Council,http://statistics.data.gov.uk/id/local-authority/32UC,Neighbourhood Services,Fuel & Oil,09/10/2014,IJ00037267,344.14,AllStar Business Solutions Ltd,
East Lindsey District Council,http://statistics.data.gov.uk/id/local-authority/32UC,TL Property,Fuel & Oil,09/10/2014,IJ00037267,62.22,AllStar Business Solutions Ltd,
East Lindsey District Council,http://statistics.data.gov.uk/id/local-authority/32UC,Neighbourhood Services,Fuel & Oil,09/10/2014,IJ00037267,92.27,AllStar Business Solutions Ltd,
East Lindsey District Council,http://statistics.data.gov.uk/id/local-authority/32UC,Neighbourhood Services,Fuel & Oil,09/10/2014,IJ00037267,871.63,AllStar Business Solutions Ltd,
East Lindsey District Council,http://statistics.data.gov.uk/id/local-authority/32UC,Hsg Advice & Homelessness TL,Fuel & Oil,09/10/2014,IJ00037267,66.72,AllStar Business Solutions Ltd,
East Lindsey District Council,http://statistics.data.gov.uk/id/local-authority/32UC,Neighbourhood Services,Fuel & Oil,09/10/2014,IJ00037267,40.00,AllStar Business Solutions Ltd,
East Lindsey District Council,http://statistics.data.gov.uk/id/local-authority/32UC,Enforcement Team Leader,Fuel & Oil,09/10/2014,IJ00037342,293.71,AllStar Business Solutions Ltd,
East Lindsey District Council,http://statistics.data.gov.uk/id/local-authority/32UC,Neighbourhood Services,Fuel & Oil,09/10/2014,IJ00037342,1441.48,AllStar Business Solutions Ltd,
East Lindsey District Council,http://statistics.data.gov.uk/id/local-authority/32UC,Neighbourhood Services,Fuel & Oil,09/10/2014,IJ00037342,40.00,AllStar Business Solutions Ltd,
East Lindsey District Council,http://statistics.data.gov.uk/id/local-authority/32UC,Neighbourhood Services,Fuel & Oil,09/10/2014,IJ00037342,544.54,AllStar Business Solutions Ltd,
East Lindsey District Council,http://statistics.data.gov.uk/id/local-authority/32UC,TL Property,Fuel & Oil,09/10/2014,IJ00037342,55.47,AllStar Business Solutions Ltd,
East Lindsey District Council,http://statistics.data.gov.uk/id/local-authority/32UC,Neighbourhood Services,Fuel & Oil,09/10/2014,IJ00037342,144.98,AllStar Business Solutions Ltd,
East Lindsey District Council,http://statistics.data.gov.uk/id/local-authority/32UC,Hsg Advice & Homelessness TL,Fuel & Oil,09/10/2014,IJ00037342,95.88,AllStar Business Solutions Ltd,
East Lindsey District Council,http://statistics.data.gov.uk/id/local-authority/32UC,Neighbourhood Services,Fuel & Oil,09/10/2014,IJ00037342,932.70,AllStar Business Solutions Ltd,
East Lindsey District Council,http://statistics.data.gov.uk/id/local-authority/32UC,"Performance, Governance & Commissioning",Postages,09/10/2014,IJ00037229,3271.96,Print.UK.com,
East Lindsey District Council,http://statistics.data.gov.uk/id/local-authority/32UC,"Performance, Governance & Commissioning",Stationery,09/10/2014,IJ00037230,1450.93,Print.UK.com,
East Lindsey District Council,http://statistics.data.gov.uk/id/local-authority/32UC,Waste Services Manager,Commercial Vehicle Lease,09/10/2014,IJ00037276,14962.22,Kier FPS Limited,
East Lindsey District Council,http://statistics.data.gov.uk/id/local-authority/32UC,Neighbourhood Services,Commercial Vehicle Lease,09/10/2014,IJ00037343,8946.16,Kier FPS Limited,
East Lindsey District Council,http://statistics.data.gov.uk/id/local-authority/32UC,Cultural & Related Services,Professional & Contractors Fees,09/10/2014,IJ00037140,662.00,Lorna Fulton,
East Lindsey District Council,http://statistics.data.gov.uk/id/local-authority/32UC,Cultural & Related Services,Staff Travelling Expenses (including Public Transport),09/10/2014,IJ00037140,162.00,Lorna Fulton,
East Lindsey District Council,http://statistics.data.gov.uk/id/local-authority/32UC,Cultural & Related Services,Professional & Contractors Fees,09/10/2014,IJ00037141,2114.40,Lorna Fulton,
East Lindsey District Council,http://statistics.data.gov.uk/id/local-authority/32UC,Development Control,Agency Staff,09/10/2014,IJ00037159,1330.10,Redacted Personal Information,REDACTED
East Lindsey District Council,http://statistics.data.gov.uk/id/local-authority/32UC,Cultural & Related Services,Other Miscellaneous Expenses,09/10/2014,IJ00037362,1390.00,Traffic Managements Services Retford Ltd,
East Lindsey District Council,http://statistics.data.gov.uk/id/local-authority/32UC,Enforcement Team Leader,Buildings Maintenance - Programmed,09/10/2014,IJ00037303,1174.00,Centrewire Ltd,
East Lindsey District Council,http://statistics.data.gov.uk/id/local-authority/32UC,Economic & Tourism,Grants and Contributions to Outside Bodies- No Service Recei,09/10/2014,IJ00037204,3213.56,KIRKS QUALITY FOODS,
East Lindsey District Council,http://statistics.data.gov.uk/id/local-authority/32UC,Cultural & Related Services,Public Courses and Workshops,09/10/2014,IJ00037181,3000.00,Martin Macdonald,
East Lindsey District Council,http://statistics.data.gov.uk/id/local-authority/32UC,Economic & Tourism,Other Miscellaneous Expenses,09/10/2014,IJ00037218,4104.60,Redacted Personal Information,REDACTED
East Lindsey District Council,http://statistics.data.gov.uk/id/local-authority/32UC,Theatre Manager,Professional & Contractors Fees,16/10/2014,IJ00037395,133.10,BIFFA WASTE SERVICES LTD,
East Lindsey District Council,http://statistics.data.gov.uk/id/local-authority/32UC,Leisure Operations,Professional & Contractors Fees,16/10/2014,IJ00037395,133.10,BIFFA WASTE SERVICES LTD,
East Lindsey District Council,http://statistics.data.gov.uk/id/local-authority/32UC,Economic & Tourism,Professional & Contractors Fees,16/10/2014,IJ00037395,66.55,BIFFA WASTE SERVICES LTD,
East Lindsey District Council,http://statistics.data.gov.uk/id/local-authority/32UC,Economic & Tourism,Professional & Contractors Fees,16/10/2014,IJ00037395,66.55,BIFFA WASTE SERVICES LTD,
East Lindsey District Council,http://statistics.data.gov.uk/id/local-authority/32UC,TL Property,Professional & Contractors Fees,16/10/2014,IJ00037395,66.55,BIFFA WASTE SERVICES LTD,
East Lindsey District Council,http://statistics.data.gov.uk/id/local-authority/32UC,Leisure Operations,Professional & Contractors Fees,16/10/2014,IJ00037395,66.55,BIFFA WASTE SERVICES LTD,
East Lindsey District Council,http://statistics.data.gov.uk/id/local-authority/32UC,Leisure Operations,Professional & Contractors Fees,16/10/2014,IJ00037395,66.55,BIFFA WASTE SERVICES LTD,
East Lindsey District Council,http://statistics.data.gov.uk/id/local-authority/32UC,TL Property,Professional & Contractors Fees,16/10/2014,IJ00037395,66.55,BIFFA WASTE SERVICES LTD,
East Lindsey District Council,http://statistics.data.gov.uk/id/local-authority/32UC,TL Property,Professional & Contractors Fees,16/10/2014,IJ00037395,329.50,BIFFA WASTE SERVICES LTD,
East Lindsey District Council,http://statistics.data.gov.uk/id/local-authority/32UC,Leisure Operations,Professional & Contractors Fees,16/10/2014,IJ00037395,332.75,BIFFA WASTE SERVICES LTD,
East Lindsey District Council,http://statistics.data.gov.uk/id/local-authority/32UC,Information Technology,Telephones,16/10/2014,IJ00037371,2587.13,BT PLC,
East Lindsey District Council,http://statistics.data.gov.uk/id/local-authority/32UC,Neighbourhood Services,Professional & Contractors Fees,16/10/2014,IJ00037466,560.00,SID DENNIS & SONS LTD,
East Lindsey District Council,http://statistics.data.gov.uk/id/local-authority/32UC,Theatre Manager,Banking Charges,16/10/2014,IJ00037554,5.80,BARCLAYS MERCHANT SERVICES,
East Lindsey District Council,http://statistics.data.gov.uk/id/local-authority/32UC,Theatre Manager,Banking Charges,16/10/2014,IJ00037554,793.67,BARCLAYS MERCHANT SERVICES,
East Lindsey District Council,http://statistics.data.gov.uk/id/local-authority/32UC,"Performance, Governance & Commissioning",Postages,16/10/2014,IJ00037447,1041.91,ROYAL MAIL,
East Lindsey District Council,http://statistics.data.gov.uk/id/local-authority/32UC,Theatre Manager,Materials and Consumables,16/10/2014,IJ00037399,307.50,PHS GROUP PLC,
East Lindsey District Council,http://statistics.data.gov.uk/id/local-authority/32UC,TL Property,Materials and Consumables,16/10/2014,IJ00037399,73.52,PHS GROUP PLC,
East Lindsey District Council,http://statistics.data.gov.uk/id/local-authority/32UC,Leisure Operations,Materials and Consumables,16/10/2014,IJ00037399,8.00,PHS GROUP PLC,
East Lindsey District Council,http://statistics.data.gov.uk/id/local-authority/32UC,Leisure Operations,Materials and Consumables,16/10/2014,IJ00037399,324.48,PHS GROUP PLC,
East Lindsey District Council,http://statistics.data.gov.uk/id/local-authority/32UC,Leisure Operations,Materials and Consumables,16/10/2014,IJ00037399,269.32,PHS GROUP PLC,
East Lindsey District Council,http://statistics.data.gov.uk/id/local-authority/32UC,TL Property,Materials and Consumables,16/10/2014,IJ00037399,60.65,PHS GROUP PLC,
East Lindsey District Council,http://statistics.data.gov.uk/id/local-authority/32UC,Economic & Tourism,Materials and Consumables,16/10/2014,IJ00037399,76.26,PHS GROUP PLC,
East Lindsey District Council,http://statistics.data.gov.uk/id/local-authority/32UC,Economic & Tourism,Materials and Consumables,16/10/2014,IJ00037399,300.62,PHS GROUP PLC,
East Lindsey District Council,http://statistics.data.gov.uk/id/local-authority/32UC,Leisure Operations,Cleaning Contract,16/10/2014,IJ00037399,273.51,PHS GROUP PLC,
East Lindsey District Council,http://statistics.data.gov.uk/id/local-authority/32UC,Leisure Operations,Cleaning Contract,16/10/2014,IJ00037399,2131.93,PHS GROUP PLC,
East Lindsey District Council,http://statistics.data.gov.uk/id/local-authority/32UC,Theatre Manager,Materials and Consumables,16/10/2014,IJ00037399,44.72,PHS GROUP PLC,
East Lindsey District Council,http://statistics.data.gov.uk/id/local-authority/32UC,TL Property,Electricity,16/10/2014,IJ00037509,3619.69,SOUTHERN ELECTRIC PLC,
East Lindsey District Council,http://statistics.data.gov.uk/id/local-authority/32UC,Neighbourhood Services,Electricity,16/10/2014,IJ00037509,32.17,SOUTHERN ELECTRIC PLC,
East Lindsey District Council,http://statistics.data.gov.uk/id/local-authority/32UC,Enforcement Team Leader,Electricity,16/10/2014,IJ00037509,3.80,SOUTHERN ELECTRIC PLC,
East Lindsey District Council,http://statistics.data.gov.uk/id/local-authority/32UC,Enforcement Team Leader,Electricity,16/10/2014,IJ00037509,12.88,SOUTHERN ELECTRIC PLC,
East Lindsey District Council,http://statistics.data.gov.uk/id/local-authority/32UC,Enforcement Team Leader,Electricity,16/10/2014,IJ00037509,42.84,SOUTHERN ELECTRIC PLC,
East Lindsey District Council,http://statistics.data.gov.uk/id/local-authority/32UC,Enforcement Team Leader,Electricity,16/10/2014,IJ00037509,12.11,SOUTHERN ELECTRIC PLC,
East Lindsey District Council,http://statistics.data.gov.uk/id/local-authority/32UC,Enforcement Team Leader,Electricity,16/10/2014,IJ00037509,31.38,SOUTHERN ELECTRIC PLC,
East Lindsey District Council,http://statistics.data.gov.uk/id/local-authority/32UC,Neighbourhood Services,Electricity,16/10/2014,IJ00037509,4.20,SOUTHERN ELECTRIC PLC,
East Lindsey District Council,http://statistics.data.gov.uk/id/local-authority/32UC,Enforcement Team Leader,Electricity,16/10/2014,IJ00037509,40.66,SOUTHERN ELECTRIC PLC,
East Lindsey District Council,http://statistics.data.gov.uk/id/local-authority/32UC,TL Property,Gas,16/10/2014,IJ00037509,43.10,SOUTHERN ELECTRIC PLC,
East Lindsey District Council,http://statistics.data.gov.uk/id/local-authority/32UC,Enforcement Team Leader,Gas,16/10/2014,IJ00037509,15.83,SOUTHERN ELECTRIC PLC,
East Lindsey District Council,http://statistics.data.gov.uk/id/local-authority/32UC,Enforcement Team Leader,Gas,16/10/2014,IJ00037509,15.83,SOUTHERN ELECTRIC PLC,
East Lindsey District Council,http://statistics.data.gov.uk/id/local-authority/32UC,Enforcement Team Leader,Gas,16/10/2014,IJ00037509,18.43,SOUTHERN ELECTRIC PLC,
East Lindsey District Council,http://statistics.data.gov.uk/id/local-authority/32UC,Enforcement Team Leader,Gas,16/10/2014,IJ00037509,34.96,SOUTHERN ELECTRIC PLC,
East Lindsey District Council,http://statistics.data.gov.uk/id/local-authority/32UC,Economic & Tourism,Agency Staff,16/10/2014,IJ00037422,36.75,WORKFORCE UNLIMITED,
East Lindsey District Council,http://statistics.data.gov.uk/id/local-authority/32UC,Economic & Tourism,Agency Staff,16/10/2014,IJ00037422,588.00,WORKFORCE UNLIMITED,
East Lindsey District Council,http://statistics.data.gov.uk/id/local-authority/32UC,TL Property,Buildings Maintenance - Programmed,16/10/2014,IJ00037491,2338.80,DEVLIN DECORATORS LTD,
East Lindsey District Council,http://statistics.data.gov.uk/id/local-authority/32UC,Neighbourhood Services,Professional & Contractors Fees,16/10/2014,IJ00037388,750.50,EKM LTD,
East Lindsey District Council,http://statistics.data.gov.uk/id/local-authority/32UC,BALANCE  SHEET,VAT Customs and Excise,16/10/2014,IJ00037410,1446.91,JACOBS,
East Lindsey District Council,http://statistics.data.gov.uk/id/local-authority/32UC,BALANCE  SHEET,Payroll Sacrifice Nursery Voucher,16/10/2014,IJ00037534,1844.00,SODEXHO,
East Lindsey District Council,http://statistics.data.gov.uk/id/local-authority/32UC,Theatre Manager,Film and Entertainment Costs,16/10/2014,IJ00037455,4959.03,PERFORMING RIGHT SOCIETY LTD,
East Lindsey District Council,http://statistics.data.gov.uk/id/local-authority/32UC,Theatre Manager,Film and Entertainment Costs,16/10/2014,IJ00037456,5230.43,PERFORMING RIGHT SOCIETY LTD,
East Lindsey District Council,http://statistics.data.gov.uk/id/local-authority/32UC,Neighbourhood Services,Buildings Maintenance - Programmed,16/10/2014,IJ00037492,1840.00,D & D ENGINEERING (LINCS) LTD,
East Lindsey District Council,http://statistics.data.gov.uk/id/local-authority/32UC,Economic & Tourism,Grants and Contributions to Outside Bodies- No Service Recei,16/10/2014,IJ00037541,1680.00,PHILLIPS ANIMAL HEALTH LTD,
East Lindsey District Council,http://statistics.data.gov.uk/id/local-authority/32UC,Neighbourhood Services,Grounds Maintenance Contract (External),16/10/2014,IJ00037389,23133.75,VEOLIA ES (UK) LIMITED,
East Lindsey District Council,http://statistics.data.gov.uk/id/local-authority/32UC,Information Technology,Computer Software Licence Costs,16/10/2014,IJ00037372,4590.00,HITEC (LABORATORIES) LTD,
East Lindsey District Council,http://statistics.data.gov.uk/id/local-authority/32UC,Enforcement Team Leader,Payments to Bodies in Respect of Income Collected,16/10/2014,IJ00037394,1787.80,INNES ENGLAND COMMERCIAL PROPERTY,
East Lindsey District Council,http://statistics.data.gov.uk/id/local-authority/32UC,Information Technology,Computer Software Licence Costs,16/10/2014,IJ00037369,858.79,EXPERIAN LTD,
East Lindsey District Council,http://statistics.data.gov.uk/id/local-authority/32UC,Neighbourhood Services,Agency Staff,16/10/2014,IJ00037428,1401.20,THE WORKSHOP (WISBECH) LIMITED,
East Lindsey District Council,http://statistics.data.gov.uk/id/local-authority/32UC,Neighbourhood Services,Agency Staff,16/10/2014,IJ00037428,1401.19,THE WORKSHOP (WISBECH) LIMITED,
East Lindsey District Council,http://statistics.data.gov.uk/id/local-authority/32UC,Neighbourhood Services,Agency Staff,16/10/2014,IJ00037429,1516.89,THE WORKSHOP (WISBECH) LIMITED,
East Lindsey District Council,http://statistics.data.gov.uk/id/local-authority/32UC,Neighbourhood Services,Agency Staff,16/10/2014,IJ00037429,1516.89,THE WORKSHOP (WISBECH) LIMITED,
East Lindsey District Council,http://statistics.data.gov.uk/id/local-authority/32UC,Neighbourhood Services,Agency Staff,16/10/2014,IJ00037538,1531.05,THE WORKSHOP (WISBECH) LIMITED,
East Lindsey District Council,http://statistics.data.gov.uk/id/local-authority/32UC,Neighbourhood Services,Agency Staff,16/10/2014,IJ00037538,1531.05,THE WORKSHOP (WISBECH) LIMITED,
East Lindsey District Council,http://statistics.data.gov.uk/id/local-authority/32UC,Theatre Manager,Buildings Maintenance - Programmed,16/10/2014,IJ00037559,272.00,ORONA LTD,
East Lindsey District Council,http://statistics.data.gov.uk/id/local-authority/32UC,Leisure Operations,Buildings Maintenance - Programmed,16/10/2014,IJ00037559,222.00,ORONA LTD,
East Lindsey District Council,http://statistics.data.gov.uk/id/local-authority/32UC,Leisure Operations,Buildings Maintenance - Programmed,16/10/2014,IJ00037559,222.00,ORONA LTD,
East Lindsey District Council,http://statistics.data.gov.uk/id/local-authority/32UC,Leisure Operations,Buildings Maintenance - Programmed,16/10/2014,IJ00037559,50.00,ORONA LTD,
East Lindsey District Council,http://statistics.data.gov.uk/id/local-authority/32UC,TL Property,Buildings Maintenance - Programmed,16/10/2014,IJ00037559,222.00,ORONA LTD,
East Lindsey District Council,http://statistics.data.gov.uk/id/local-authority/32UC,Economic & Tourism,Buildings Maintenance - Programmed,16/10/2014,IJ00037559,222.00,ORONA LTD,
East Lindsey District Council,http://statistics.data.gov.uk/id/local-authority/32UC,Economic & Tourism,Buildings Maintenance - Programmed,16/10/2014,IJ00037559,50.00,ORONA LTD,
East Lindsey District Council,http://statistics.data.gov.uk/id/local-authority/32UC,TL Property,Buildings Maintenance - Programmed,16/10/2014,IJ00037559,222.00,ORONA LTD,
East Lindsey District Council,http://statistics.data.gov.uk/id/local-authority/32UC,TL Property,Buildings Maintenance - Programmed,16/10/2014,IJ00037559,322.00,ORONA LTD,
East Lindsey District Council,http://statistics.data.gov.uk/id/local-authority/32UC,TL Property,Buildings Maintenance - Programmed,16/10/2014,IJ00037559,50.00,ORONA LTD,
East Lindsey District Council,http://statistics.data.gov.uk/id/local-authority/32UC,Revenues & Benefits,Court Costs,16/10/2014,IJ00037431,1989.00,CENTRAL FINANCE UNIT,
East Lindsey District Council,http://statistics.data.gov.uk/id/local-authority/32UC,Revenues & Benefits,Court Costs,16/10/2014,IJ00037431,57.00,CENTRAL FINANCE UNIT,
East Lindsey District Council,http://statistics.data.gov.uk/id/local-authority/32UC,Theatre Manager,Purchase Of Goods For Resale,16/10/2014,IJ00037463,693.80,MOLSON COORS BREWERS LTD,
East Lindsey District Council,http://statistics.data.gov.uk/id/local-authority/32UC,Leisure Operations,Grants and Contributions to Outside Bodies- No Service Recei,16/10/2014,IJ00037379,5044.07,SKEGNESS ACADEMY,
East Lindsey District Council,http://statistics.data.gov.uk/id/local-authority/32UC,TL Property,Buildings Maintenance - Programmed,16/10/2014,IJ00037497,1120.97,J TOMLINSON LTD,
East Lindsey District Council,http://statistics.data.gov.uk/id/local-authority/32UC,TL Property,Buildings Maintenance - Responsive,16/10/2014,IJ00037498,1557.42,J TOMLINSON LTD,
East Lindsey District Council,http://statistics.data.gov.uk/id/local-authority/32UC,Hsg Private Sector TL,Grants and Contributions to Outside Bodies- No Service Recei,16/10/2014,IJ00037547,6490.92,EVERTON CONSTRUCTION SERVICES LTD,
East Lindsey District Council,http://statistics.data.gov.uk/id/local-authority/32UC,Hsg Private Sector TL,Other Income,16/10/2014,IJ00037549,-1311.09,THM CONSTRUCTION,
East Lindsey District Council,http://statistics.data.gov.uk/id/local-authority/32UC,Hsg Private Sector TL,Grants and Contributions to Outside Bodies- No Service Recei,16/10/2014,IJ00037549,5054.24,THM CONSTRUCTION,
East Lindsey District Council,http://statistics.data.gov.uk/id/local-authority/32UC,Economic & Tourism,Other Miscellaneous Expenses,16/10/2014,IJ00037425,809.00,SECWHA,
East Lindsey District Council,http://statistics.data.gov.uk/id/local-authority/32UC,Theatre Manager,Buildings Maintenance - Programmed,16/10/2014,IJ00037485,1780.00,SAFE & SOUND SECURITY SYSTEMS LINKS LTD,
East Lindsey District Council,http://statistics.data.gov.uk/id/local-authority/32UC,TL Property,Buildings Maintenance - Programmed,16/10/2014,IJ00037485,900.00,SAFE & SOUND SECURITY SYSTEMS LINKS LTD,
East Lindsey District Council,http://statistics.data.gov.uk/id/local-authority/32UC,TL Property,Buildings Maintenance - Programmed,16/10/2014,IJ00037485,900.00,SAFE & SOUND SECURITY SYSTEMS LINKS LTD,
East Lindsey District Council,http://statistics.data.gov.uk/id/local-authority/32UC,Neighbourhood Services,Water and Sewerage Charges,16/10/2014,IJ00037502,527.25,ANGLIAN WATER,
East Lindsey District Council,http://statistics.data.gov.uk/id/local-authority/32UC,Waste Services Manager,Materials and Consumables,16/10/2014,IJ00037479,1507.10,ESE LTD,
East Lindsey District Council,http://statistics.data.gov.uk/id/local-authority/32UC,Economic & Tourism,Cleaning Contract,16/10/2014,IJ00037415,835.40,EASY CLEAN MARSHCHAPEL LTD,
East Lindsey District Council,http://statistics.data.gov.uk/id/local-authority/32UC,TL Property,"Books, Magazines and Other Publications",16/10/2014,IJ00037490,2545.00,RICS MEMBERSHIP RENEWALS,
East Lindsey District Council,http://statistics.data.gov.uk/id/local-authority/32UC,Information Technology,Computer Hardware Purchase,16/10/2014,IJ00037471,4008.00,1SOURCEIT LIMITED,
East Lindsey District Council,http://statistics.data.gov.uk/id/local-authority/32UC,Information Technology,Telephones,16/10/2014,IJ00037472,995.00,Wifigear Limited,
East Lindsey District Council,http://statistics.data.gov.uk/id/local-authority/32UC,Information Technology,Computer Hardware Purchase,16/10/2014,IJ00037472,9010.00,Wifigear Limited,
East Lindsey District Council,http://statistics.data.gov.uk/id/local-authority/32UC,Hsg Private Sector TL,Other Income,16/10/2014,IJ00037550,-605.66,Brothertoft Build Ltd,
East Lindsey District Council,http://statistics.data.gov.uk/id/local-authority/32UC,Hsg Private Sector TL,Grants and Contributions to Outside Bodies- No Service Recei,16/10/2014,IJ00037550,6783.40,Brothertoft Build Ltd,
East Lindsey District Council,http://statistics.data.gov.uk/id/local-authority/32UC,Building Control,Telephones,16/10/2014,IJ00037374,23.49,Vodafone Limited,
East Lindsey District Council,http://statistics.data.gov.uk/id/local-authority/32UC,Information Technology,Telephones,16/10/2014,IJ00037374,23.49,Vodafone Limited,
East Lindsey District Council,http://statistics.data.gov.uk/id/local-authority/32UC,Information Technology,Telephones,16/10/2014,IJ00037374,1518.25,Vodafone Limited,
East Lindsey District Council,http://statistics.data.gov.uk/id/local-authority/32UC,Hsg Private Sector TL,Other Income,16/10/2014,IJ00037546,-806.19,M H Developments,
East Lindsey District Council,http://statistics.data.gov.uk/id/local-authority/32UC,Hsg Private Sector TL,Grants and Contributions to Outside Bodies- No Service Recei,16/10/2014,IJ00037546,8407.28,M H Developments,
East Lindsey District Council,http://statistics.data.gov.uk/id/local-authority/32UC,Hsg Private Sector TL,Grants and Contributions to Outside Bodies- No Service Recei,16/10/2014,IJ00037546,622.05,M H Developments,
East Lindsey District Council,http://statistics.data.gov.uk/id/local-authority/32UC,Communications Manager,Other Miscellaneous Expenses,16/10/2014,IJ00037398,3468.00,Polestar UK Print Limited,
East Lindsey District Council,http://statistics.data.gov.uk/id/local-authority/32UC,Hsg Private Sector TL,Grants and Contributions to Outside Bodies- No Service Recei,16/10/2014,IJ00037548,2160.00,Lincolnshire Stove Company,
East Lindsey District Council,http://statistics.data.gov.uk/id/local-authority/32UC,TL Property,Buildings Maintenance - Responsive,16/10/2014,IJ00037487,843.00,Beesafe,
East Lindsey District Council,http://statistics.data.gov.uk/id/local-authority/32UC,Waste Services Manager,Agency Staff,16/10/2014,IJ00037397,1485.88,BIBBY FACTORS YORKSHIRE LIMITED,
East Lindsey District Council,http://statistics.data.gov.uk/id/local-authority/32UC,Theatre Manager,Professional & Contractors Fees,16/10/2014,IJ00037460,4498.66,Andrew Harding Productions,
East Lindsey District Council,http://statistics.data.gov.uk/id/local-authority/32UC,Cultural & Related Services,Performers and Entertainers Fees,16/10/2014,IJ00037392,4000.00,Karen Monid,
East Lindsey District Council,http://statistics.data.gov.uk/id/local-authority/32UC,Cultural & Related Services,Performers and Entertainers Fees,16/10/2014,IJ00037393,6500.00,Black Country Touring,
East Lindsey District Council,http://statistics.data.gov.uk/id/local-authority/32UC,Economic & Tourism,Grants and Contributions to Outside Bodies- No Service Recei,16/10/2014,IJ00037435,4960.00,A and C V Harrison,
East Lindsey District Council,http://statistics.data.gov.uk/id/local-authority/32UC,Collection Fund,Precept - Lincolnshire Police,22/10/2014,IJ00037699,789708.10,LOCAL POLICE AUTHORITY FUND ACCOUNT,
East Lindsey District Council,http://statistics.data.gov.uk/id/local-authority/32UC,Collection Fund,Precept- Lincolnshire County Council,22/10/2014,IJ00037698,4341195.00,LINCOLNSHIRE COUNTY COUNCIL,
East Lindsey District Council,http://statistics.data.gov.uk/id/local-authority/32UC,Collection Fund,Share of NDR Income - Lincolnshire,22/10/2014,IJ00037698,310145.00,LINCOLNSHIRE COUNTY COUNCIL,
East Lindsey District Council,http://statistics.data.gov.uk/id/local-authority/32UC,Corporate Accounting,Business Rates Tariff,22/10/2014,IJ00037701,742410.00,LINCOLNSHIRE COUNTY COUNCIL,
East Lindsey District Council,http://statistics.data.gov.uk/id/local-authority/32UC,Collection Fund,Central Share of NDR Income - Government,22/10/2014,IJ00037690,1682948.00,DEPARTMENT FOR COMMUNITIES AND LOCAL,
East Lindsey District Council,http://statistics.data.gov.uk/id/local-authority/32UC,Collection Fund,Transitional Protection Payments,22/10/2014,IJ00037690,-7817.00,DEPARTMENT FOR COMMUNITIES AND LOCAL,
East Lindsey District Council,http://statistics.data.gov.uk/id/local-authority/32UC,Collection Fund,Contribution to Deficit (NDR),22/10/2014,IJ00037690,-54688.00,DEPARTMENT FOR COMMUNITIES AND LOCAL,
East Lindsey District Council,http://statistics.data.gov.uk/id/local-authority/32UC,Development Control,Banking Charges,22/10/2014,IJ00037686,9.52,CAPITA BUSINESS SERVICES LTD,
East Lindsey District Council,http://statistics.data.gov.uk/id/local-authority/32UC,Corporate Management,Banking Charges,22/10/2014,IJ00037686,2359.77,CAPITA BUSINESS SERVICES LTD,
East Lindsey District Council,http://statistics.data.gov.uk/id/local-authority/32UC,Corporate Management,Banking Charges,22/10/2014,IJ00037686,51.34,CAPITA BUSINESS SERVICES LTD,
East Lindsey District Council,http://statistics.data.gov.uk/id/local-authority/32UC,Corporate Management,Banking Charges,22/10/2014,IJ00037686,51.54,CAPITA BUSINESS SERVICES LTD,
East Lindsey District Council,http://statistics.data.gov.uk/id/local-authority/32UC,Corporate Accounting,Banking Charges,22/10/2014,IJ00037686,1524.62,CAPITA BUSINESS SERVICES LTD,
East Lindsey District Council,http://statistics.data.gov.uk/id/local-authority/32UC,Corporate Management,Banking Charges,22/10/2014,IJ00037686,75.90,CAPITA BUSINESS SERVICES LTD,
East Lindsey District Council,http://statistics.data.gov.uk/id/local-authority/32UC,"Performance, Governance & Commissioning",Professional & Contractors Fees,22/10/2014,IJ00037696,1627.88,Dataplan Payroll Ltd,
East Lindsey District Council,http://statistics.data.gov.uk/id/local-authority/32UC,Waste Services Manager,Telephones,23/10/2014,IJ00037724,130.23,VODAFONE CORPORATE LIMITED,
East Lindsey District Council,http://statistics.data.gov.uk/id/local-authority/32UC,Communications Manager,Telephones,23/10/2014,IJ00037724,45.57,VODAFONE CORPORATE LIMITED,
East Lindsey District Council,http://statistics.data.gov.uk/id/local-authority/32UC,Theatre Manager,Telephones,23/10/2014,IJ00037724,73.13,VODAFONE CORPORATE LIMITED,
East Lindsey District Council,http://statistics.data.gov.uk/id/local-authority/32UC,Development Control,Telephones,23/10/2014,IJ00037724,12.85,VODAFONE CORPORATE LIMITED,
East Lindsey District Council,http://statistics.data.gov.uk/id/local-authority/32UC,Enforcement Team Leader,Telephones,23/10/2014,IJ00037724,68.23,VODAFONE CORPORATE LIMITED,
East Lindsey District Council,http://statistics.data.gov.uk/id/local-authority/32UC,Enforcement Team Leader,Telephones,23/10/2014,IJ00037724,48.39,VODAFONE CORPORATE LIMITED,
East Lindsey District Council,http://statistics.data.gov.uk/id/local-authority/32UC,Building Control,Telephones,23/10/2014,IJ00037724,12.87,VODAFONE CORPORATE LIMITED,
East Lindsey District Council,http://statistics.data.gov.uk/id/local-authority/32UC,Hsg Private Sector TL,Telephones,23/10/2014,IJ00037724,33.64,VODAFONE CORPORATE LIMITED,
East Lindsey District Council,http://statistics.data.gov.uk/id/local-authority/32UC,Enforcement Team Leader,Telephones,23/10/2014,IJ00037724,271.06,VODAFONE CORPORATE LIMITED,
East Lindsey District Council,http://statistics.data.gov.uk/id/local-authority/32UC,Cultural & Related Services,Telephones,23/10/2014,IJ00037724,30.75,VODAFONE CORPORATE LIMITED,
East Lindsey District Council,http://statistics.data.gov.uk/id/local-authority/32UC,Hsg Advice & Homelessness TL,Telephones,23/10/2014,IJ00037724,21.44,VODAFONE CORPORATE LIMITED,
East Lindsey District Council,http://statistics.data.gov.uk/id/local-authority/32UC,Hsg Private Sector TL,Telephones,23/10/2014,IJ00037724,72.76,VODAFONE CORPORATE LIMITED,
East Lindsey District Council,http://statistics.data.gov.uk/id/local-authority/32UC,Hsg Advice & Homelessness TL,Telephones,23/10/2014,IJ00037724,96.23,VODAFONE CORPORATE LIMITED,
East Lindsey District Council,http://statistics.data.gov.uk/id/local-authority/32UC,Waste Services Manager,Telephones,23/10/2014,IJ00037724,32.72,VODAFONE CORPORATE LIMITED,
East Lindsey District Council,http://statistics.data.gov.uk/id/local-authority/32UC,Building Control,Telephones,23/10/2014,IJ00037724,182.56,VODAFONE CORPORATE LIMITED,
East Lindsey District Council,http://statistics.data.gov.uk/id/local-authority/32UC,Economic & Tourism,Telephones,23/10/2014,IJ00037724,2.81,VODAFONE CORPORATE LIMITED,
East Lindsey District Council,http://statistics.data.gov.uk/id/local-authority/32UC,Corporate Management,Telephones,23/10/2014,IJ00037724,56.93,VODAFONE CORPORATE LIMITED,
East Lindsey District Council,http://statistics.data.gov.uk/id/local-authority/32UC,Leisure Operations,Telephones,23/10/2014,IJ00037724,10.47,VODAFONE CORPORATE LIMITED,
East Lindsey District Council,http://statistics.data.gov.uk/id/local-authority/32UC,Leisure Operations,Telephones,23/10/2014,IJ00037724,7.64,VODAFONE CORPORATE LIMITED,
East Lindsey District Council,http://statistics.data.gov.uk/id/local-authority/32UC,Leisure Operations,Telephones,23/10/2014,IJ00037724,52.45,VODAFONE CORPORATE LIMITED,
East Lindsey District Council,http://statistics.data.gov.uk/id/local-authority/32UC,Leisure Operations,Telephones,23/10/2014,IJ00037724,11.05,VODAFONE CORPORATE LIMITED,
East Lindsey District Council,http://statistics.data.gov.uk/id/local-authority/32UC,Neighbourhood Services,Telephones,23/10/2014,IJ00037724,140.03,VODAFONE CORPORATE LIMITED,
East Lindsey District Council,http://statistics.data.gov.uk/id/local-authority/32UC,Neighbourhood Services,Telephones,23/10/2014,IJ00037724,10.76,VODAFONE CORPORATE LIMITED,
East Lindsey District Council,http://statistics.data.gov.uk/id/local-authority/32UC,TL Property,Telephones,23/10/2014,IJ00037724,111.99,VODAFONE CORPORATE LIMITED,
East Lindsey District Council,http://statistics.data.gov.uk/id/local-authority/32UC,Neighbourhood Services,Telephones,23/10/2014,IJ00037724,15.31,VODAFONE CORPORATE LIMITED,
East Lindsey District Council,http://statistics.data.gov.uk/id/local-authority/32UC,Economic & Tourism,Telephones,23/10/2014,IJ00037724,20.59,VODAFONE CORPORATE LIMITED,
East Lindsey District Council,http://statistics.data.gov.uk/id/local-authority/32UC,"Performance, Governance & Commissioning",Telephones,23/10/2014,IJ00037724,158.48,VODAFONE CORPORATE LIMITED,
East Lindsey District Council,http://statistics.data.gov.uk/id/local-authority/32UC,Enforcement Team Leader,Telephones,23/10/2014,IJ00037724,6.75,VODAFONE CORPORATE LIMITED,
East Lindsey District Council,http://statistics.data.gov.uk/id/local-authority/32UC,Environment Team Leader,Telephones,23/10/2014,IJ00037724,134.30,VODAFONE CORPORATE LIMITED,
East Lindsey District Council,http://statistics.data.gov.uk/id/local-authority/32UC,Cultural & Related Services,Telephones,23/10/2014,IJ00037724,44.68,VODAFONE CORPORATE LIMITED,
East Lindsey District Council,http://statistics.data.gov.uk/id/local-authority/32UC,Cultural & Related Services,Telephones,23/10/2014,IJ00037724,16.49,VODAFONE CORPORATE LIMITED,
East Lindsey District Council,http://statistics.data.gov.uk/id/local-authority/32UC,Cultural & Related Services,Telephones,23/10/2014,IJ00037724,19.90,VODAFONE CORPORATE LIMITED,
East Lindsey District Council,http://statistics.data.gov.uk/id/local-authority/32UC,Cultural & Related Services,Telephones,23/10/2014,IJ00037724,4.70,VODAFONE CORPORATE LIMITED,
East Lindsey District Council,http://statistics.data.gov.uk/id/local-authority/32UC,Hsg Private Sector TL,Telephones,23/10/2014,IJ00037724,80.41,VODAFONE CORPORATE LIMITED,
East Lindsey District Council,http://statistics.data.gov.uk/id/local-authority/32UC,"Performance, Governance & Commissioning",Telephones,23/10/2014,IJ00037724,12.85,VODAFONE CORPORATE LIMITED,
East Lindsey District Council,http://statistics.data.gov.uk/id/local-authority/32UC,Planning Policy,Telephones,23/10/2014,IJ00037724,31.79,VODAFONE CORPORATE LIMITED,
East Lindsey District Council,http://statistics.data.gov.uk/id/local-authority/32UC,Economic & Tourism,Telephones,23/10/2014,IJ00037724,102.32,VODAFONE CORPORATE LIMITED,
East Lindsey District Council,http://statistics.data.gov.uk/id/local-authority/32UC,Cultural & Related Services,Telephones,23/10/2014,IJ00037724,151.99,VODAFONE CORPORATE LIMITED,
East Lindsey District Council,http://statistics.data.gov.uk/id/local-authority/32UC,Neighbourhood Services,Telephones,23/10/2014,IJ00037724,105.21,VODAFONE CORPORATE LIMITED,
East Lindsey District Council,http://statistics.data.gov.uk/id/local-authority/32UC,Neighbourhood Services,Telephones,23/10/2014,IJ00037724,0.28,VODAFONE CORPORATE LIMITED,
East Lindsey District Council,http://statistics.data.gov.uk/id/local-authority/32UC,Neighbourhood Services,Telephones,23/10/2014,IJ00037724,204.56,VODAFONE CORPORATE LIMITED,
East Lindsey District Council,http://statistics.data.gov.uk/id/local-authority/32UC,Theatre Manager,Telephones,23/10/2014,IJ00037724,2.81,VODAFONE CORPORATE LIMITED,
East Lindsey District Council,http://statistics.data.gov.uk/id/local-authority/32UC,Enforcement Team Leader,Telephones,23/10/2014,IJ00037724,13.50,VODAFONE CORPORATE LIMITED,
East Lindsey District Council,http://statistics.data.gov.uk/id/local-authority/32UC,Enforcement Team Leader,Telephones,23/10/2014,IJ00037724,6.75,VODAFONE CORPORATE LIMITED,
East Lindsey District Council,http://statistics.data.gov.uk/id/local-authority/32UC,Enforcement Team Leader,Telephones,23/10/2014,IJ00037724,6.75,VODAFONE CORPORATE LIMITED,
East Lindsey District Council,http://statistics.data.gov.uk/id/local-authority/32UC,Enforcement Team Leader,Telephones,23/10/2014,IJ00037724,33.75,VODAFONE CORPORATE LIMITED,
East Lindsey District Council,http://statistics.data.gov.uk/id/local-authority/32UC,Enforcement Team Leader,Telephones,23/10/2014,IJ00037724,6.75,VODAFONE CORPORATE LIMITED,
East Lindsey District Council,http://statistics.data.gov.uk/id/local-authority/32UC,Enforcement Team Leader,Telephones,23/10/2014,IJ00037724,6.75,VODAFONE CORPORATE LIMITED,
East Lindsey District Council,http://statistics.data.gov.uk/id/local-authority/32UC,Enforcement Team Leader,Telephones,23/10/2014,IJ00037724,20.25,VODAFONE CORPORATE LIMITED,
East Lindsey District Council,http://statistics.data.gov.uk/id/local-authority/32UC,Enforcement Team Leader,Telephones,23/10/2014,IJ00037724,6.75,VODAFONE CORPORATE LIMITED,
East Lindsey District Council,http://statistics.data.gov.uk/id/local-authority/32UC,Enforcement Team Leader,Telephones,23/10/2014,IJ00037724,13.50,VODAFONE CORPORATE LIMITED,
East Lindsey District Council,http://statistics.data.gov.uk/id/local-authority/32UC,Enforcement Team Leader,Telephones,23/10/2014,IJ00037724,6.75,VODAFONE CORPORATE LIMITED,
East Lindsey District Council,http://statistics.data.gov.uk/id/local-authority/32UC,Enforcement Team Leader,Telephones,23/10/2014,IJ00037724,6.75,VODAFONE CORPORATE LIMITED,
East Lindsey District Council,http://statistics.data.gov.uk/id/local-authority/32UC,Enforcement Team Leader,Telephones,23/10/2014,IJ00037724,6.75,VODAFONE CORPORATE LIMITED,
East Lindsey District Council,http://statistics.data.gov.uk/id/local-authority/32UC,Enforcement Team Leader,Telephones,23/10/2014,IJ00037724,6.75,VODAFONE CORPORATE LIMITED,
East Lindsey District Council,http://statistics.data.gov.uk/id/local-authority/32UC,Enforcement Team Leader,Telephones,23/10/2014,IJ00037724,13.50,VODAFONE CORPORATE LIMITED,
East Lindsey District Council,http://statistics.data.gov.uk/id/local-authority/32UC,Enforcement Team Leader,Telephones,23/10/2014,IJ00037724,6.75,VODAFONE CORPORATE LIMITED,
East Lindsey District Council,http://statistics.data.gov.uk/id/local-authority/32UC,Enforcement Team Leader,Telephones,23/10/2014,IJ00037724,6.75,VODAFONE CORPORATE LIMITED,
East Lindsey District Council,http://statistics.data.gov.uk/id/local-authority/32UC,Enforcement Team Leader,Telephones,23/10/2014,IJ00037724,6.75,VODAFONE CORPORATE LIMITED,
East Lindsey District Council,http://statistics.data.gov.uk/id/local-authority/32UC,Enforcement Team Leader,Telephones,23/10/2014,IJ00037724,6.75,VODAFONE CORPORATE LIMITED,
East Lindsey District Council,http://statistics.data.gov.uk/id/local-authority/32UC,Enforcement Team Leader,Telephones,23/10/2014,IJ00037724,13.50,VODAFONE CORPORATE LIMITED,
East Lindsey District Council,http://statistics.data.gov.uk/id/local-authority/32UC,Enforcement Team Leader,Telephones,23/10/2014,IJ00037724,13.50,VODAFONE CORPORATE LIMITED,
East Lindsey District Council,http://statistics.data.gov.uk/id/local-authority/32UC,Enforcement Team Leader,Telephones,23/10/2014,IJ00037724,6.75,VODAFONE CORPORATE LIMITED,
East Lindsey District Council,http://statistics.data.gov.uk/id/local-authority/32UC,Enforcement Team Leader,Telephones,23/10/2014,IJ00037724,6.75,VODAFONE CORPORATE LIMITED,
East Lindsey District Council,http://statistics.data.gov.uk/id/local-authority/32UC,Enforcement Team Leader,Telephones,23/10/2014,IJ00037724,20.25,VODAFONE CORPORATE LIMITED,
East Lindsey District Council,http://statistics.data.gov.uk/id/local-authority/32UC,Enforcement Team Leader,Telephones,23/10/2014,IJ00037724,13.50,VODAFONE CORPORATE LIMITED,
East Lindsey District Council,http://statistics.data.gov.uk/id/local-authority/32UC,Enforcement Team Leader,Telephones,23/10/2014,IJ00037724,6.75,VODAFONE CORPORATE LIMITED,
East Lindsey District Council,http://statistics.data.gov.uk/id/local-authority/32UC,Enforcement Team Leader,Telephones,23/10/2014,IJ00037724,13.50,VODAFONE CORPORATE LIMITED,
East Lindsey District Council,http://statistics.data.gov.uk/id/local-authority/32UC,Enforcement Team Leader,Telephones,23/10/2014,IJ00037724,13.50,VODAFONE CORPORATE LIMITED,
East Lindsey District Council,http://statistics.data.gov.uk/id/local-authority/32UC,Enforcement Team Leader,Telephones,23/10/2014,IJ00037724,6.75,VODAFONE CORPORATE LIMITED,
East Lindsey District Council,http://statistics.data.gov.uk/id/local-authority/32UC,Enforcement Team Leader,Telephones,23/10/2014,IJ00037724,20.25,VODAFONE CORPORATE LIMITED,
East Lindsey District Council,http://statistics.data.gov.uk/id/local-authority/32UC,Enforcement Team Leader,Telephones,23/10/2014,IJ00037724,6.75,VODAFONE CORPORATE LIMITED,
East Lindsey District Council,http://statistics.data.gov.uk/id/local-authority/32UC,Enforcement Team Leader,Telephones,23/10/2014,IJ00037724,13.50,VODAFONE CORPORATE LIMITED,
East Lindsey District Council,http://statistics.data.gov.uk/id/local-authority/32UC,Enforcement Team Leader,Telephones,23/10/2014,IJ00037724,6.75,VODAFONE CORPORATE LIMITED,
East Lindsey District Council,http://statistics.data.gov.uk/id/local-authority/32UC,Enforcement Team Leader,Telephones,23/10/2014,IJ00037724,13.50,VODAFONE CORPORATE LIMITED,
East Lindsey District Council,http://statistics.data.gov.uk/id/local-authority/32UC,Enforcement Team Leader,Telephones,23/10/2014,IJ00037724,13.50,VODAFONE CORPORATE LIMITED,
East Lindsey District Council,http://statistics.data.gov.uk/id/local-authority/32UC,Enforcement Team Leader,Telephones,23/10/2014,IJ00037724,6.75,VODAFONE CORPORATE LIMITED,
East Lindsey District Council,http://statistics.data.gov.uk/id/local-authority/32UC,Enforcement Team Leader,Telephones,23/10/2014,IJ00037724,6.75,VODAFONE CORPORATE LIMITED,
East Lindsey District Council,http://statistics.data.gov.uk/id/local-authority/32UC,Enforcement Team Leader,Telephones,23/10/2014,IJ00037724,6.75,VODAFONE CORPORATE LIMITED,
East Lindsey District Council,http://statistics.data.gov.uk/id/local-authority/32UC,Enforcement Team Leader,Telephones,23/10/2014,IJ00037724,6.75,VODAFONE CORPORATE LIMITED,
East Lindsey District Council,http://statistics.data.gov.uk/id/local-authority/32UC,Enforcement Team Leader,Telephones,23/10/2014,IJ00037724,6.75,VODAFONE CORPORATE LIMITED,
East Lindsey District Council,http://statistics.data.gov.uk/id/local-authority/32UC,Enforcement Team Leader,Telephones,23/10/2014,IJ00037724,6.75,VODAFONE CORPORATE LIMITED,
East Lindsey District Council,http://statistics.data.gov.uk/id/local-authority/32UC,Enforcement Team Leader,Telephones,23/10/2014,IJ00037724,6.75,VODAFONE CORPORATE LIMITED,
East Lindsey District Council,http://statistics.data.gov.uk/id/local-authority/32UC,Enforcement Team Leader,Telephones,23/10/2014,IJ00037724,13.50,VODAFONE CORPORATE LIMITED,
East Lindsey District Council,http://statistics.data.gov.uk/id/local-authority/32UC,Enforcement Team Leader,Telephones,23/10/2014,IJ00037724,6.75,VODAFONE CORPORATE LIMITED,
East Lindsey District Council,http://statistics.data.gov.uk/id/local-authority/32UC,Enforcement Team Leader,Telephones,23/10/2014,IJ00037724,6.75,VODAFONE CORPORATE LIMITED,
East Lindsey District Council,http://statistics.data.gov.uk/id/local-authority/32UC,Enforcement Team Leader,Telephones,23/10/2014,IJ00037724,6.75,VODAFONE CORPORATE LIMITED,
East Lindsey District Council,http://statistics.data.gov.uk/id/local-authority/32UC,Enforcement Team Leader,Telephones,23/10/2014,IJ00037724,6.75,VODAFONE CORPORATE LIMITED,
East Lindsey District Council,http://statistics.data.gov.uk/id/local-authority/32UC,Enforcement Team Leader,Telephones,23/10/2014,IJ00037724,13.50,VODAFONE CORPORATE LIMITED,
East Lindsey District Council,http://statistics.data.gov.uk/id/local-authority/32UC,Enforcement Team Leader,Telephones,23/10/2014,IJ00037724,6.75,VODAFONE CORPORATE LIMITED,
East Lindsey District Council,http://statistics.data.gov.uk/id/local-authority/32UC,Enforcement Team Leader,Telephones,23/10/2014,IJ00037724,6.75,VODAFONE CORPORATE LIMITED,
East Lindsey District Council,http://statistics.data.gov.uk/id/local-authority/32UC,Enforcement Team Leader,Telephones,23/10/2014,IJ00037724,6.75,VODAFONE CORPORATE LIMITED,
East Lindsey District Council,http://statistics.data.gov.uk/id/local-authority/32UC,Enforcement Team Leader,Telephones,23/10/2014,IJ00037724,6.75,VODAFONE CORPORATE LIMITED,
East Lindsey District Council,http://statistics.data.gov.uk/id/local-authority/32UC,Cultural & Related Services,Telephones,23/10/2014,IJ00037724,2.81,VODAFONE CORPORATE LIMITED,
East Lindsey District Council,http://statistics.data.gov.uk/id/local-authority/32UC,Hsg Advice & Homelessness TL,Telephones,23/10/2014,IJ00037724,280.56,VODAFONE CORPORATE LIMITED,
East Lindsey District Council,http://statistics.data.gov.uk/id/local-authority/32UC,Environment Team Leader,Telephones,23/10/2014,IJ00037724,249.52,VODAFONE CORPORATE LIMITED,
East Lindsey District Council,http://statistics.data.gov.uk/id/local-authority/32UC,Cultural & Related Services,Telephones,23/10/2014,IJ00037724,22.68,VODAFONE CORPORATE LIMITED,
East Lindsey District Council,http://statistics.data.gov.uk/id/local-authority/32UC,Hsg Private Sector TL,Grants and Contributions to Outside Bodies- No Service Recei,23/10/2014,IJ00037735,7746.84,M & M GRANTHAM,
East Lindsey District Council,http://statistics.data.gov.uk/id/local-authority/32UC,"Performance, Governance & Commissioning",Grants and Contributions to Outside Bodies- No Service Recei,23/10/2014,IJ00037643,500.00,NORTH SOMERCOTES CE PRIMARY SCHOOL,
East Lindsey District Council,http://statistics.data.gov.uk/id/local-authority/32UC,Economic & Tourism,Agency Staff,23/10/2014,IJ00037615,26.95,WORKFORCE UNLIMITED,
East Lindsey District Council,http://statistics.data.gov.uk/id/local-authority/32UC,Economic & Tourism,Agency Staff,23/10/2014,IJ00037615,614.95,WORKFORCE UNLIMITED,
East Lindsey District Council,http://statistics.data.gov.uk/id/local-authority/32UC,Leisure Operations,Materials and Consumables,23/10/2014,IJ00037730,916.00,IQL UK LTD,
East Lindsey District Council,http://statistics.data.gov.uk/id/local-authority/32UC,BALANCE  SHEET,VAT Customs and Excise,23/10/2014,IJ00037669,1420.15,JACOBS,
East Lindsey District Council,http://statistics.data.gov.uk/id/local-authority/32UC,Cultural & Related Services,Stationery,23/10/2014,IJ00037733,19.05,ESPO,
East Lindsey District Council,http://statistics.data.gov.uk/id/local-authority/32UC,Leisure Operations,Materials and Consumables,23/10/2014,IJ00037733,100.48,ESPO,
East Lindsey District Council,http://statistics.data.gov.uk/id/local-authority/32UC,Leisure Operations,Cleaning Contract,23/10/2014,IJ00037733,86.79,ESPO,
East Lindsey District Council,http://statistics.data.gov.uk/id/local-authority/32UC,Leisure Operations,Furniture and Equipment,23/10/2014,IJ00037733,98.49,ESPO,
East Lindsey District Council,http://statistics.data.gov.uk/id/local-authority/32UC,Leisure Operations,Furniture and Equipment,23/10/2014,IJ00037733,80.96,ESPO,
East Lindsey District Council,http://statistics.data.gov.uk/id/local-authority/32UC,Leisure Operations,Cleaning Contract,23/10/2014,IJ00037733,505.40,ESPO,
East Lindsey District Council,http://statistics.data.gov.uk/id/local-authority/32UC,Leisure Operations,Stationery,23/10/2014,IJ00037733,38.21,ESPO,
East Lindsey District Council,http://statistics.data.gov.uk/id/local-authority/32UC,Hsg Advice & Homelessness TL,Stationery,23/10/2014,IJ00037733,71.78,ESPO,
East Lindsey District Council,http://statistics.data.gov.uk/id/local-authority/32UC,Hsg Advice & Homelessness TL,Rent and Lease Payments,23/10/2014,IJ00037563,1167.36,NEW LINX HOUSING TRUST,
East Lindsey District Council,http://statistics.data.gov.uk/id/local-authority/32UC,Hsg Advice & Homelessness TL,Rent and Lease Payments,23/10/2014,IJ00037564,1167.36,NEW LINX HOUSING TRUST,
East Lindsey District Council,http://statistics.data.gov.uk/id/local-authority/32UC,Hsg Advice & Homelessness TL,Rent and Lease Payments,23/10/2014,IJ00037565,914.52,NEW LINX HOUSING TRUST,
East Lindsey District Council,http://statistics.data.gov.uk/id/local-authority/32UC,Hsg Advice & Homelessness TL,Rent and Lease Payments,23/10/2014,IJ00037566,914.52,NEW LINX HOUSING TRUST,
East Lindsey District Council,http://statistics.data.gov.uk/id/local-authority/32UC,Hsg Advice & Homelessness TL,Rent and Lease Payments,23/10/2014,IJ00037567,852.60,NEW LINX HOUSING TRUST,
East Lindsey District Council,http://statistics.data.gov.uk/id/local-authority/32UC,Hsg Advice & Homelessness TL,Rent and Lease Payments,23/10/2014,IJ00037568,852.60,NEW LINX HOUSING TRUST,
East Lindsey District Council,http://statistics.data.gov.uk/id/local-authority/32UC,Hsg Advice & Homelessness TL,Rent and Lease Payments,23/10/2014,IJ00037569,1001.64,NEW LINX HOUSING TRUST,
East Lindsey District Council,http://statistics.data.gov.uk/id/local-authority/32UC,Hsg Advice & Homelessness TL,Rent and Lease Payments,23/10/2014,IJ00037570,1001.64,NEW LINX HOUSING TRUST,
East Lindsey District Council,http://statistics.data.gov.uk/id/local-authority/32UC,Hsg Advice & Homelessness TL,Rent and Lease Payments,23/10/2014,IJ00037571,1005.00,NEW LINX HOUSING TRUST,
East Lindsey District Council,http://statistics.data.gov.uk/id/local-authority/32UC,Hsg Advice & Homelessness TL,Rent and Lease Payments,23/10/2014,IJ00037572,1005.00,NEW LINX HOUSING TRUST,
East Lindsey District Council,http://statistics.data.gov.uk/id/local-authority/32UC,Hsg Advice & Homelessness TL,Rent and Lease Payments,23/10/2014,IJ00037573,1143.96,NEW LINX HOUSING TRUST,
East Lindsey District Council,http://statistics.data.gov.uk/id/local-authority/32UC,Hsg Advice & Homelessness TL,Rent and Lease Payments,23/10/2014,IJ00037574,1143.96,NEW LINX HOUSING TRUST,
East Lindsey District Council,http://statistics.data.gov.uk/id/local-authority/32UC,Hsg Advice & Homelessness TL,Rent and Lease Payments,23/10/2014,IJ00037575,1031.16,NEW LINX HOUSING TRUST,
East Lindsey District Council,http://statistics.data.gov.uk/id/local-authority/32UC,Hsg Advice & Homelessness TL,Rent and Lease Payments,23/10/2014,IJ00037576,1031.16,NEW LINX HOUSING TRUST,
East Lindsey District Council,http://statistics.data.gov.uk/id/local-authority/32UC,Hsg Advice & Homelessness TL,Rent and Lease Payments,23/10/2014,IJ00037577,1052.64,NEW LINX HOUSING TRUST,
East Lindsey District Council,http://statistics.data.gov.uk/id/local-authority/32UC,Hsg Advice & Homelessness TL,Rent and Lease Payments,23/10/2014,IJ00037578,1052.64,NEW LINX HOUSING TRUST,
East Lindsey District Council,http://statistics.data.gov.uk/id/local-authority/32UC,Hsg Advice & Homelessness TL,Rent and Lease Payments,23/10/2014,IJ00037579,920.40,NEW LINX HOUSING TRUST,
East Lindsey District Council,http://statistics.data.gov.uk/id/local-authority/32UC,Hsg Advice & Homelessness TL,Rent and Lease Payments,23/10/2014,IJ00037580,920.40,NEW LINX HOUSING TRUST,
East Lindsey District Council,http://statistics.data.gov.uk/id/local-authority/32UC,Hsg Advice & Homelessness TL,Rent and Lease Payments,23/10/2014,IJ00037581,920.40,NEW LINX HOUSING TRUST,
East Lindsey District Council,http://statistics.data.gov.uk/id/local-authority/32UC,Hsg Advice & Homelessness TL,Rent and Lease Payments,23/10/2014,IJ00037582,920.40,NEW LINX HOUSING TRUST,
East Lindsey District Council,http://statistics.data.gov.uk/id/local-authority/32UC,Hsg Advice & Homelessness TL,Rent and Lease Payments,23/10/2014,IJ00037583,1111.20,NEW LINX HOUSING TRUST,
East Lindsey District Council,http://statistics.data.gov.uk/id/local-authority/32UC,Hsg Advice & Homelessness TL,Rent and Lease Payments,23/10/2014,IJ00037584,1111.20,NEW LINX HOUSING TRUST,
East Lindsey District Council,http://statistics.data.gov.uk/id/local-authority/32UC,Hsg Advice & Homelessness TL,Rent and Lease Payments,23/10/2014,IJ00037585,1076.16,NEW LINX HOUSING TRUST,
East Lindsey District Council,http://statistics.data.gov.uk/id/local-authority/32UC,Hsg Advice & Homelessness TL,Rent and Lease Payments,23/10/2014,IJ00037586,1076.16,NEW LINX HOUSING TRUST,
East Lindsey District Council,http://statistics.data.gov.uk/id/local-authority/32UC,Hsg Advice & Homelessness TL,Rent and Lease Payments,23/10/2014,IJ00037587,1150.20,NEW LINX HOUSING TRUST,
East Lindsey District Council,http://statistics.data.gov.uk/id/local-authority/32UC,Hsg Advice & Homelessness TL,Rent and Lease Payments,23/10/2014,IJ00037588,1150.20,NEW LINX HOUSING TRUST,
East Lindsey District Council,http://statistics.data.gov.uk/id/local-authority/32UC,Hsg Advice & Homelessness TL,Rent and Lease Payments,23/10/2014,IJ00037589,1150.20,NEW LINX HOUSING TRUST,
East Lindsey District Council,http://statistics.data.gov.uk/id/local-authority/32UC,Hsg Advice & Homelessness TL,Rent and Lease Payments,23/10/2014,IJ00037590,1150.20,NEW LINX HOUSING TRUST,
East Lindsey District Council,http://statistics.data.gov.uk/id/local-authority/32UC,Hsg Advice & Homelessness TL,Rent and Lease Payments,23/10/2014,IJ00037591,1150.20,NEW LINX HOUSING TRUST,
East Lindsey District Council,http://statistics.data.gov.uk/id/local-authority/32UC,Hsg Advice & Homelessness TL,Rent and Lease Payments,23/10/2014,IJ00037592,1150.20,NEW LINX HOUSING TRUST,
East Lindsey District Council,http://statistics.data.gov.uk/id/local-authority/32UC,Hsg Advice & Homelessness TL,Rent and Lease Payments,23/10/2014,IJ00037593,1150.20,NEW LINX HOUSING TRUST,
East Lindsey District Council,http://statistics.data.gov.uk/id/local-authority/32UC,Hsg Advice & Homelessness TL,Rent and Lease Payments,23/10/2014,IJ00037594,1150.20,NEW LINX HOUSING TRUST,
East Lindsey District Council,http://statistics.data.gov.uk/id/local-authority/32UC,Hsg Advice & Homelessness TL,Rent and Lease Payments,23/10/2014,IJ00037595,1243.68,NEW LINX HOUSING TRUST,
East Lindsey District Council,http://statistics.data.gov.uk/id/local-authority/32UC,Hsg Advice & Homelessness TL,Rent and Lease Payments,23/10/2014,IJ00037596,1243.68,NEW LINX HOUSING TRUST,
East Lindsey District Council,http://statistics.data.gov.uk/id/local-authority/32UC,Hsg Advice & Homelessness TL,Rent and Lease Payments,23/10/2014,IJ00037597,1167.36,NEW LINX HOUSING TRUST,
East Lindsey District Council,http://statistics.data.gov.uk/id/local-authority/32UC,Hsg Advice & Homelessness TL,Rent and Lease Payments,23/10/2014,IJ00037598,1167.36,NEW LINX HOUSING TRUST,
East Lindsey District Council,http://statistics.data.gov.uk/id/local-authority/32UC,Leisure Operations,Other Miscellaneous Expenses,23/10/2014,IJ00037651,702.42,DEE BEE,
East Lindsey District Council,http://statistics.data.gov.uk/id/local-authority/32UC,Leisure Operations,Other Miscellaneous Expenses,23/10/2014,IJ00037661,797.33,DEE BEE,
East Lindsey District Council,http://statistics.data.gov.uk/id/local-authority/32UC,Hsg Private Sector TL,Other Income,23/10/2014,IJ00037736,-337.50,OBAM STAIRLIFTS,
East Lindsey District Council,http://statistics.data.gov.uk/id/local-authority/32UC,Hsg Private Sector TL,Grants and Contributions to Outside Bodies- No Service Recei,23/10/2014,IJ00037736,3780.00,OBAM STAIRLIFTS,
East Lindsey District Council,http://statistics.data.gov.uk/id/local-authority/32UC,Theatre Manager,Performers and Entertainers Fees,23/10/2014,IJ00037673,3801.38,CHARLIE LANDSBOROUGH ENTERPRISE,
East Lindsey District Council,http://statistics.data.gov.uk/id/local-authority/32UC,"Performance, Governance & Commissioning",Grants and Contributions to Outside Bodies- No Service Recei,23/10/2014,IJ00037649,750.00,1ST SKEGNESS SCOUTS,
East Lindsey District Council,http://statistics.data.gov.uk/id/local-authority/32UC,Hsg Advice & Homelessness TL,Grants and Contributions to Outside Bodies- No Service Recei,23/10/2014,IJ00037635,24000.00,WATERLOO HOUSING GROUP LTD,
East Lindsey District Council,http://statistics.data.gov.uk/id/local-authority/32UC,"Performance, Governance & Commissioning",Grants and Contributions to Outside Bodies- No Service Recei,23/10/2014,IJ00037684,1719.00,DOGDYKE PUMPING STATION PRESERVATION TRU,
East Lindsey District Council,http://statistics.data.gov.uk/id/local-authority/32UC,"Performance, Governance & Commissioning",Grants and Contributions to Outside Bodies- No Service Recei,23/10/2014,IJ00037637,1440.00,LEGBOURNE & LITTLE CAWTHORPE COMM CENTR,
East Lindsey District Council,http://statistics.data.gov.uk/id/local-authority/32UC,Neighbourhood Services,Agency Staff,23/10/2014,IJ00037621,949.17,THE WORKSHOP (WISBECH) LIMITED,
East Lindsey District Council,http://statistics.data.gov.uk/id/local-authority/32UC,Neighbourhood Services,Agency Staff,23/10/2014,IJ00037621,949.16,THE WORKSHOP (WISBECH) LIMITED,
East Lindsey District Council,http://statistics.data.gov.uk/id/local-authority/32UC,Hsg Private Sector TL,Professional & Contractors Fees,23/10/2014,IJ00037618,9250.00,SAFE & SOUND SECURITY SYSTEMS LINKS LTD,
East Lindsey District Council,http://statistics.data.gov.uk/id/local-authority/32UC,Waste Services Manager,Materials and Consumables,23/10/2014,IJ00037630,3014.20,ESE LTD,
East Lindsey District Council,http://statistics.data.gov.uk/id/local-authority/32UC,Corporate Accounting,Government Housing Capital Receipt Pool,23/10/2014,IJ00037751,722.69,GOVERNMENT BANKING SERVICE,
East Lindsey District Council,http://statistics.data.gov.uk/id/local-authority/32UC,Waste Services Manager,Telephones,23/10/2014,IJ00037729,11.00,DAISY COMMUNICATIONS LTD,
East Lindsey District Council,http://statistics.data.gov.uk/id/local-authority/32UC,Enforcement Team Leader,Other agencies,23/10/2014,IJ00037729,24.88,DAISY COMMUNICATIONS LTD,
East Lindsey District Council,http://statistics.data.gov.uk/id/local-authority/32UC,Customer Services Manager,Telephones,23/10/2014,IJ00037729,44.05,DAISY COMMUNICATIONS LTD,
East Lindsey District Council,http://statistics.data.gov.uk/id/local-authority/32UC,Theatre Manager,Telephones,23/10/2014,IJ00037729,54.95,DAISY COMMUNICATIONS LTD,
East Lindsey District Council,http://statistics.data.gov.uk/id/local-authority/32UC,Hsg Private Sector TL,Telephones,23/10/2014,IJ00037729,159.99,DAISY COMMUNICATIONS LTD,
East Lindsey District Council,http://statistics.data.gov.uk/id/local-authority/32UC,Enforcement Team Leader,Telephones,23/10/2014,IJ00037729,10.99,DAISY COMMUNICATIONS LTD,
East Lindsey District Council,http://statistics.data.gov.uk/id/local-authority/32UC,Building Control,Telephones,23/10/2014,IJ00037729,51.92,DAISY COMMUNICATIONS LTD,
East Lindsey District Council,http://statistics.data.gov.uk/id/local-authority/32UC,TL Property,Other Communication Costs,23/10/2014,IJ00037729,10.99,DAISY COMMUNICATIONS LTD,
East Lindsey District Council,http://statistics.data.gov.uk/id/local-authority/32UC,Economic & Tourism,Telephones,23/10/2014,IJ00037729,27.15,DAISY COMMUNICATIONS LTD,
East Lindsey District Council,http://statistics.data.gov.uk/id/local-authority/32UC,Corporate Management,Telephones,23/10/2014,IJ00037729,1835.52,DAISY COMMUNICATIONS LTD,
East Lindsey District Council,http://statistics.data.gov.uk/id/local-authority/32UC,Information Technology,Telephones,23/10/2014,IJ00037729,83.85,DAISY COMMUNICATIONS LTD,
East Lindsey District Council,http://statistics.data.gov.uk/id/local-authority/32UC,Information Technology,Telephones,23/10/2014,IJ00037729,21.98,DAISY COMMUNICATIONS LTD,
East Lindsey District Council,http://statistics.data.gov.uk/id/local-authority/32UC,Leisure Operations,Telephones,23/10/2014,IJ00037729,151.54,DAISY COMMUNICATIONS LTD,
East Lindsey District Council,http://statistics.data.gov.uk/id/local-authority/32UC,Leisure Operations,Telephones,23/10/2014,IJ00037729,62.42,DAISY COMMUNICATIONS LTD,
East Lindsey District Council,http://statistics.data.gov.uk/id/local-authority/32UC,Economic & Tourism,Telephones,23/10/2014,IJ00037729,359.08,DAISY COMMUNICATIONS LTD,
East Lindsey District Council,http://statistics.data.gov.uk/id/local-authority/32UC,Economic & Tourism,Telephones,23/10/2014,IJ00037729,310.67,DAISY COMMUNICATIONS LTD,
East Lindsey District Council,http://statistics.data.gov.uk/id/local-authority/32UC,Leisure Operations,Telephones,23/10/2014,IJ00037729,43.18,DAISY COMMUNICATIONS LTD,
East Lindsey District Council,http://statistics.data.gov.uk/id/local-authority/32UC,Leisure Operations,Telephones,23/10/2014,IJ00037729,21.98,DAISY COMMUNICATIONS LTD,
East Lindsey District Council,http://statistics.data.gov.uk/id/local-authority/32UC,Leisure Operations,Telephones,23/10/2014,IJ00037729,54.83,DAISY COMMUNICATIONS LTD,
East Lindsey District Council,http://statistics.data.gov.uk/id/local-authority/32UC,TL Property,Telephones,23/10/2014,IJ00037729,10.99,DAISY COMMUNICATIONS LTD,
East Lindsey District Council,http://statistics.data.gov.uk/id/local-authority/32UC,TL Property,Telephones,23/10/2014,IJ00037729,10.99,DAISY COMMUNICATIONS LTD,
East Lindsey District Council,http://statistics.data.gov.uk/id/local-authority/32UC,TL Property,Telephones,23/10/2014,IJ00037729,22.28,DAISY COMMUNICATIONS LTD,
East Lindsey District Council,http://statistics.data.gov.uk/id/local-authority/32UC,TL Property,Telephones,23/10/2014,IJ00037729,10.99,DAISY COMMUNICATIONS LTD,
East Lindsey District Council,http://statistics.data.gov.uk/id/local-authority/32UC,Leisure Operations,Telephones,23/10/2014,IJ00037729,23.27,DAISY COMMUNICATIONS LTD,
East Lindsey District Council,http://statistics.data.gov.uk/id/local-authority/32UC,Leisure Operations,Telephones,23/10/2014,IJ00037729,39.66,DAISY COMMUNICATIONS LTD,
East Lindsey District Council,http://statistics.data.gov.uk/id/local-authority/32UC,Neighbourhood Services,Telephones,23/10/2014,IJ00037729,10.99,DAISY COMMUNICATIONS LTD,
East Lindsey District Council,http://statistics.data.gov.uk/id/local-authority/32UC,TL Property,Telephones,23/10/2014,IJ00037729,12.18,DAISY COMMUNICATIONS LTD,
East Lindsey District Council,http://statistics.data.gov.uk/id/local-authority/32UC,TL Property,Telephones,23/10/2014,IJ00037729,33.07,DAISY COMMUNICATIONS LTD,
East Lindsey District Council,http://statistics.data.gov.uk/id/local-authority/32UC,Theatre Manager,Telephones,23/10/2014,IJ00037729,44.84,DAISY COMMUNICATIONS LTD,
East Lindsey District Council,http://statistics.data.gov.uk/id/local-authority/32UC,TL Property,Telephones,23/10/2014,IJ00037729,32.99,DAISY COMMUNICATIONS LTD,
East Lindsey District Council,http://statistics.data.gov.uk/id/local-authority/32UC,Corporate Management,Telephones,23/10/2014,IJ00037729,10.99,DAISY COMMUNICATIONS LTD,
East Lindsey District Council,http://statistics.data.gov.uk/id/local-authority/32UC,TL Property,Telephones,23/10/2014,IJ00037729,33.01,DAISY COMMUNICATIONS LTD,
East Lindsey District Council,http://statistics.data.gov.uk/id/local-authority/32UC,Neighbourhood Services,Telephones,23/10/2014,IJ00037729,10.99,DAISY COMMUNICATIONS LTD,
East Lindsey District Council,http://statistics.data.gov.uk/id/local-authority/32UC,Economic & Tourism,Other Communication Costs,23/10/2014,IJ00037729,12.86,DAISY COMMUNICATIONS LTD,
East Lindsey District Council,http://statistics.data.gov.uk/id/local-authority/32UC,"Performance, Governance & Commissioning",Grants and Contributions to Outside Bodies- No Service Recei,23/10/2014,IJ00037747,500.00,NATIONAL COASTWATCH,
East Lindsey District Council,http://statistics.data.gov.uk/id/local-authority/32UC,Hsg Private Sector TL,Other Income,23/10/2014,IJ00037734,-493.32,ANDREW WRISDALE BUILDING CONTRACTOR,
East Lindsey District Council,http://statistics.data.gov.uk/id/local-authority/32UC,Hsg Private Sector TL,Grants and Contributions to Outside Bodies- No Service Recei,23/10/2014,IJ00037734,5525.19,ANDREW WRISDALE BUILDING CONTRACTOR,
East Lindsey District Council,http://statistics.data.gov.uk/id/local-authority/32UC,Hsg Private Sector TL,Grants and Contributions to Outside Bodies- No Service Recei,23/10/2014,IJ00037737,4544.01,ANDREW WRISDALE BUILDING CONTRACTOR,
East Lindsey District Council,http://statistics.data.gov.uk/id/local-authority/32UC,Theatre Manager,Performers and Entertainers Fees,23/10/2014,IJ00037679,7678.59,VAMPIRES ROCK LTD,
East Lindsey District Council,http://statistics.data.gov.uk/id/local-authority/32UC,Theatre Manager,Performers and Entertainers Fees,23/10/2014,IJ00037679,-630.00,VAMPIRES ROCK LTD,
East Lindsey District Council,http://statistics.data.gov.uk/id/local-authority/32UC,TL Property,Professional & Contractors Fees,23/10/2014,IJ00037611,620.50,Louth Education Community Interest Company,
East Lindsey District Council,http://statistics.data.gov.uk/id/local-authority/32UC,Economic & Tourism,Other Miscellaneous Expenses,23/10/2014,IJ00037619,3200.00,Innovate Educate Ltd,
East Lindsey District Council,http://statistics.data.gov.uk/id/local-authority/32UC,Enforcement Team Leader,Fuel & Oil,23/10/2014,IJ00037726,155.86,AllStar Business Solutions Ltd,
East Lindsey District Council,http://statistics.data.gov.uk/id/local-authority/32UC,Neighbourhood Services,Fuel & Oil,23/10/2014,IJ00037726,1732.01,AllStar Business Solutions Ltd,
East Lindsey District Council,http://statistics.data.gov.uk/id/local-authority/32UC,Neighbourhood Services,Fuel & Oil,23/10/2014,IJ00037726,363.97,AllStar Business Solutions Ltd,
East Lindsey District Council,http://statistics.data.gov.uk/id/local-authority/32UC,TL Property,Fuel & Oil,23/10/2014,IJ00037726,57.28,AllStar Business Solutions Ltd,
East Lindsey District Council,http://statistics.data.gov.uk/id/local-authority/32UC,Hsg Advice & Homelessness TL,Fuel & Oil,23/10/2014,IJ00037726,25.01,AllStar Business Solutions Ltd,
East Lindsey District Council,http://statistics.data.gov.uk/id/local-authority/32UC,Neighbourhood Services,Fuel & Oil,23/10/2014,IJ00037726,830.94,AllStar Business Solutions Ltd,
East Lindsey District Council,http://statistics.data.gov.uk/id/local-authority/32UC,Neighbourhood Services,Fuel & Oil,23/10/2014,IJ00037726,92.39,AllStar Business Solutions Ltd,
East Lindsey District Council,http://statistics.data.gov.uk/id/local-authority/32UC,Neighbourhood Services,Fuel & Oil,23/10/2014,IJ00037726,40.00,AllStar Business Solutions Ltd,
East Lindsey District Council,http://statistics.data.gov.uk/id/local-authority/32UC,Neighbourhood Services,Maintenance,23/10/2014,IJ00037705,638.57,Kier FPS Limited,
East Lindsey District Council,http://statistics.data.gov.uk/id/local-authority/32UC,Theatre Manager,Performers and Entertainers Fees,23/10/2014,IJ00037677,4794.24,Jane McDonald Ltd,
East Lindsey District Council,http://statistics.data.gov.uk/id/local-authority/32UC,Theatre Manager,Performers and Entertainers Fees,23/10/2014,IJ00037677,-486.00,Jane McDonald Ltd,
East Lindsey District Council,http://statistics.data.gov.uk/id/local-authority/32UC,Waste Services Manager,Agency Staff,23/10/2014,IJ00037622,1492.51,BIBBY FACTORS YORKSHIRE LIMITED,
East Lindsey District Council,http://statistics.data.gov.uk/id/local-authority/32UC,Waste Services Manager,Tyres,23/10/2014,IJ00037721,5750.35,Vacu Lug Traction Tyres Ltd,
East Lindsey District Council,http://statistics.data.gov.uk/id/local-authority/32UC,"Performance, Governance & Commissioning",Grants and Contributions to Outside Bodies- No Service Recei,23/10/2014,IJ00037639,4283.00,ALFORD CORN EXCHANGE COMMUNITY GROUP,
East Lindsey District Council,http://statistics.data.gov.uk/id/local-authority/32UC,Hsg Advice & Homelessness TL,Furniture and Equipment,23/10/2014,IJ00037638,801.00,THE KEY SAFE COMPANY,
East Lindsey District Council,http://statistics.data.gov.uk/id/local-authority/32UC,BALANCE  SHEET,Cycle to Work,23/10/2014,IJ00037748,20950.00,Halfords Limited,
East Lindsey District Council,http://statistics.data.gov.uk/id/local-authority/32UC,Environment Team Leader,Grants and Contributions to Outside Bodies- No Service Recei,23/10/2014,IJ00037663,1200.00,Metro Rod,
East Lindsey District Council,http://statistics.data.gov.uk/id/local-authority/32UC,"Performance, Governance & Commissioning",Grants and Contributions to Outside Bodies- No Service Recei,23/10/2014,IJ00037647,1000.00,Mareham United Football Club,
East Lindsey District Council,http://statistics.data.gov.uk/id/local-authority/32UC,"Performance, Governance & Commissioning",Grants and Contributions to Outside Bodies- No Service Recei,23/10/2014,IJ00037640,900.00,Skegness Wakeboard and Water Ski Park,
East Lindsey District Council,http://statistics.data.gov.uk/id/local-authority/32UC,Theatre Manager,Performers and Entertainers Fees,23/10/2014,IJ00037680,13764.30,David Gest Ltd,
East Lindsey District Council,http://statistics.data.gov.uk/id/local-authority/32UC,Theatre Manager,Performers and Entertainers Fees,23/10/2014,IJ00037680,-1800.00,David Gest Ltd,
East Lindsey District Council,http://statistics.data.gov.uk/id/local-authority/32UC,Theatre Manager,Performers and Entertainers Fees,23/10/2014,IJ00037678,15139.45,Brian Yeates Associates Ltd,
East Lindsey District Council,http://statistics.data.gov.uk/id/local-authority/32UC,Theatre Manager,Performers and Entertainers Fees,23/10/2014,IJ00037678,-210.00,Brian Yeates Associates Ltd,
East Lindsey District Council,http://statistics.data.gov.uk/id/local-authority/32UC,"Performance, Governance & Commissioning",Professional & Contractors Fees,27/10/2014,IJ00037758,4600.00,Data Tracking Ltd,
East Lindsey District Council,http://statistics.data.gov.uk/id/local-authority/32UC,"Performance, Governance & Commissioning",Professional & Contractors Fees,27/10/2014,IJ00037759,4600.00,Data Tracking Ltd,
East Lindsey District Council,http://statistics.data.gov.uk/id/local-authority/32UC,Waste Services Manager,Tyres,30/10/2014,IJ00037827,506.74,B A BUSH & SON LIMITED,
East Lindsey District Council,http://statistics.data.gov.uk/id/local-authority/32UC,Leisure Operations,Other agencies,30/10/2014,IJ00037787,3335.78,COMPETITION LINE (UK) LTD,
East Lindsey District Council,http://statistics.data.gov.uk/id/local-authority/32UC,Leisure Operations,Other agencies,30/10/2014,IJ00037788,7190.03,COMPETITION LINE (UK) LTD,
East Lindsey District Council,http://statistics.data.gov.uk/id/local-authority/32UC,Hsg Private Sector TL,Other Income,30/10/2014,IJ00037893,-520.39,SIBJON BUILDERS,
East Lindsey District Council,http://statistics.data.gov.uk/id/local-authority/32UC,Hsg Private Sector TL,Grants and Contributions to Outside Bodies- No Service Recei,30/10/2014,IJ00037893,5828.39,SIBJON BUILDERS,
East Lindsey District Council,http://statistics.data.gov.uk/id/local-authority/32UC,Leisure Operations,Cleaning Contract,30/10/2014,IJ00037837,651.32,STOWLIN LTD,
East Lindsey District Council,http://statistics.data.gov.uk/id/local-authority/32UC,Hsg Private Sector TL,Other Income,30/10/2014,IJ00037836,-690.14,COTTS BUILDERS AND CONTRACTORS,
East Lindsey District Council,http://statistics.data.gov.uk/id/local-authority/32UC,Hsg Private Sector TL,Grants and Contributions to Outside Bodies- No Service Recei,30/10/2014,IJ00037836,7729.60,COTTS BUILDERS AND CONTRACTORS,
East Lindsey District Council,http://statistics.data.gov.uk/id/local-authority/32UC,Information Technology,Computer Hardware Purchase,30/10/2014,IJ00037956,5421.90,DELL COMPUTER CORPORATION LTD,
East Lindsey District Council,http://statistics.data.gov.uk/id/local-authority/32UC,Information Technology,Computer Hardware Purchase,30/10/2014,IJ00037957,14000.00,DELL COMPUTER CORPORATION LTD,
East Lindsey District Council,http://statistics.data.gov.uk/id/local-authority/32UC,Corporate Accounting,Internal Drainage Board Levies,30/10/2014,IJ00037850,136318.50,THE WITHAM THIRD DISTRICT,
East Lindsey District Council,http://statistics.data.gov.uk/id/local-authority/32UC,Corporate Management,Lincolnshire Legal Services,30/10/2014,IJ00037869,17260.49,LINCOLNSHIRE COUNTY COUNCIL,
East Lindsey District Council,http://statistics.data.gov.uk/id/local-authority/32UC,Corporate Management,Lincolnshire Legal Services,30/10/2014,IJ00037869,11632.05,LINCOLNSHIRE COUNTY COUNCIL,
East Lindsey District Council,http://statistics.data.gov.uk/id/local-authority/32UC,"Performance, Governance & Commissioning",Grants and Contributions to Outside Bodies- No Service Recei,30/10/2014,IJ00037775,40000.00,LINCOLNSHIRE COUNTY COUNCIL,
East Lindsey District Council,http://statistics.data.gov.uk/id/local-authority/32UC,Enforcement Team Leader,Professional & Contractors Fees,30/10/2014,IJ00037866,5526.00,LINCOLNSHIRE COUNTY COUNCIL,
East Lindsey District Council,http://statistics.data.gov.uk/id/local-authority/32UC,BALANCE  SHEET,Payroll-Unison,30/10/2014,IJ00037808,1634.60,UNISON,
East Lindsey District Council,http://statistics.data.gov.uk/id/local-authority/32UC,Neighbourhood Services,Electricity,30/10/2014,IJ00037924,809.31,SOUTHERN ELECTRIC PLC,
East Lindsey District Council,http://statistics.data.gov.uk/id/local-authority/32UC,Waste Services Manager,Electricity,30/10/2014,IJ00037924,30.45,SOUTHERN ELECTRIC PLC,
East Lindsey District Council,http://statistics.data.gov.uk/id/local-authority/32UC,TL Property,Electricity,30/10/2014,IJ00037924,214.68,SOUTHERN ELECTRIC PLC,
East Lindsey District Council,http://statistics.data.gov.uk/id/local-authority/32UC,TL Property,Electricity,30/10/2014,IJ00037924,202.32,SOUTHERN ELECTRIC PLC,
East Lindsey District Council,http://statistics.data.gov.uk/id/local-authority/32UC,Neighbourhood Services,Electricity,30/10/2014,IJ00037924,234.77,SOUTHERN ELECTRIC PLC,
East Lindsey District Council,http://statistics.data.gov.uk/id/local-authority/32UC,Neighbourhood Services,Electricity,30/10/2014,IJ00037924,145.45,SOUTHERN ELECTRIC PLC,
East Lindsey District Council,http://statistics.data.gov.uk/id/local-authority/32UC,Neighbourhood Services,Electricity,30/10/2014,IJ00037924,131.81,SOUTHERN ELECTRIC PLC,
East Lindsey District Council,http://statistics.data.gov.uk/id/local-authority/32UC,Economic & Tourism,Electricity,30/10/2014,IJ00037924,729.76,SOUTHERN ELECTRIC PLC,
East Lindsey District Council,http://statistics.data.gov.uk/id/local-authority/32UC,Neighbourhood Services,Electricity,30/10/2014,IJ00037924,155.58,SOUTHERN ELECTRIC PLC,
East Lindsey District Council,http://statistics.data.gov.uk/id/local-authority/32UC,Neighbourhood Services,Electricity,30/10/2014,IJ00037924,81.49,SOUTHERN ELECTRIC PLC,
East Lindsey District Council,http://statistics.data.gov.uk/id/local-authority/32UC,Economic & Tourism,Electricity,30/10/2014,IJ00037927,6845.28,SOUTHERN ELECTRIC PLC,
East Lindsey District Council,http://statistics.data.gov.uk/id/local-authority/32UC,Neighbourhood Services,Electricity,30/10/2014,IJ00037927,974.47,SOUTHERN ELECTRIC PLC,
East Lindsey District Council,http://statistics.data.gov.uk/id/local-authority/32UC,Neighbourhood Services,Electricity,30/10/2014,IJ00037927,495.05,SOUTHERN ELECTRIC PLC,
East Lindsey District Council,http://statistics.data.gov.uk/id/local-authority/32UC,Neighbourhood Services,Electricity,30/10/2014,IJ00037927,940.07,SOUTHERN ELECTRIC PLC,
East Lindsey District Council,http://statistics.data.gov.uk/id/local-authority/32UC,Economic & Tourism,Electricity,30/10/2014,IJ00037927,386.51,SOUTHERN ELECTRIC PLC,
East Lindsey District Council,http://statistics.data.gov.uk/id/local-authority/32UC,Neighbourhood Services,Electricity,30/10/2014,IJ00037927,119.85,SOUTHERN ELECTRIC PLC,
East Lindsey District Council,http://statistics.data.gov.uk/id/local-authority/32UC,Neighbourhood Services,Electricity,30/10/2014,IJ00037927,251.14,SOUTHERN ELECTRIC PLC,
East Lindsey District Council,http://statistics.data.gov.uk/id/local-authority/32UC,Neighbourhood Services,Electricity,30/10/2014,IJ00037927,249.49,SOUTHERN ELECTRIC PLC,
East Lindsey District Council,http://statistics.data.gov.uk/id/local-authority/32UC,Neighbourhood Services,Electricity,30/10/2014,IJ00037927,49.89,SOUTHERN ELECTRIC PLC,
East Lindsey District Council,http://statistics.data.gov.uk/id/local-authority/32UC,TL Property,Electricity,30/10/2014,IJ00037927,261.99,SOUTHERN ELECTRIC PLC,
East Lindsey District Council,http://statistics.data.gov.uk/id/local-authority/32UC,Customer Services Manager,Electricity,30/10/2014,IJ00037916,289.31,SOUTHERN ELECTRIC PLC,
East Lindsey District Council,http://statistics.data.gov.uk/id/local-authority/32UC,Leisure Operations,Electricity,30/10/2014,IJ00037916,2937.90,SOUTHERN ELECTRIC PLC,
East Lindsey District Council,http://statistics.data.gov.uk/id/local-authority/32UC,Leisure Operations,Electricity,30/10/2014,IJ00037916,7032.13,SOUTHERN ELECTRIC PLC,
East Lindsey District Council,http://statistics.data.gov.uk/id/local-authority/32UC,Leisure Operations,Electricity,30/10/2014,IJ00037916,428.44,SOUTHERN ELECTRIC PLC,
East Lindsey District Council,http://statistics.data.gov.uk/id/local-authority/32UC,Economic & Tourism,Electricity,30/10/2014,IJ00037916,1657.55,SOUTHERN ELECTRIC PLC,
East Lindsey District Council,http://statistics.data.gov.uk/id/local-authority/32UC,TL Property,Electricity,30/10/2014,IJ00037916,24.81,SOUTHERN ELECTRIC PLC,
East Lindsey District Council,http://statistics.data.gov.uk/id/local-authority/32UC,Leisure Operations,Electricity,30/10/2014,IJ00037916,605.89,SOUTHERN ELECTRIC PLC,
East Lindsey District Council,http://statistics.data.gov.uk/id/local-authority/32UC,Enforcement Team Leader,Electricity,30/10/2014,IJ00037916,30.67,SOUTHERN ELECTRIC PLC,
East Lindsey District Council,http://statistics.data.gov.uk/id/local-authority/32UC,Neighbourhood Services,Electricity,30/10/2014,IJ00037916,94.87,SOUTHERN ELECTRIC PLC,
East Lindsey District Council,http://statistics.data.gov.uk/id/local-authority/32UC,Theatre Manager,Electricity,30/10/2014,IJ00037926,1005.72,SOUTHERN ELECTRIC PLC,
East Lindsey District Council,http://statistics.data.gov.uk/id/local-authority/32UC,Neighbourhood Services,Electricity,30/10/2014,IJ00037926,397.00,SOUTHERN ELECTRIC PLC,
East Lindsey District Council,http://statistics.data.gov.uk/id/local-authority/32UC,Neighbourhood Services,Electricity,30/10/2014,IJ00037926,1242.51,SOUTHERN ELECTRIC PLC,
East Lindsey District Council,http://statistics.data.gov.uk/id/local-authority/32UC,TL Property,Electricity,30/10/2014,IJ00037926,4326.09,SOUTHERN ELECTRIC PLC,
East Lindsey District Council,http://statistics.data.gov.uk/id/local-authority/32UC,Theatre Manager,Electricity,30/10/2014,IJ00037926,99.25,SOUTHERN ELECTRIC PLC,
East Lindsey District Council,http://statistics.data.gov.uk/id/local-authority/32UC,TL Property,Electricity,30/10/2014,IJ00037926,122.55,SOUTHERN ELECTRIC PLC,
East Lindsey District Council,http://statistics.data.gov.uk/id/local-authority/32UC,TL Property,Electricity,30/10/2014,IJ00037926,236.16,SOUTHERN ELECTRIC PLC,
East Lindsey District Council,http://statistics.data.gov.uk/id/local-authority/32UC,Neighbourhood Services,Electricity,30/10/2014,IJ00037926,148.34,SOUTHERN ELECTRIC PLC,
East Lindsey District Council,http://statistics.data.gov.uk/id/local-authority/32UC,TL Property,Electricity,30/10/2014,IJ00037926,65.22,SOUTHERN ELECTRIC PLC,
East Lindsey District Council,http://statistics.data.gov.uk/id/local-authority/32UC,TL Property,Electricity,30/10/2014,IJ00037926,1155.38,SOUTHERN ELECTRIC PLC,
East Lindsey District Council,http://statistics.data.gov.uk/id/local-authority/32UC,Economic & Tourism,Agency Staff,30/10/2014,IJ00037779,34.30,WORKFORCE UNLIMITED,
East Lindsey District Council,http://statistics.data.gov.uk/id/local-authority/32UC,Economic & Tourism,Agency Staff,30/10/2014,IJ00037779,784.00,WORKFORCE UNLIMITED,
East Lindsey District Council,http://statistics.data.gov.uk/id/local-authority/32UC,BALANCE  SHEET,VAT Customs and Excise,30/10/2014,IJ00037795,1414.24,JACOBS,
East Lindsey District Council,http://statistics.data.gov.uk/id/local-authority/32UC,"Performance, Governance & Commissioning",Grants and Contributions to Outside Bodies- No Service Recei,30/10/2014,IJ00037776,800.00,ALFORD & DISTRICT CRICKET CLUB,
East Lindsey District Council,http://statistics.data.gov.uk/id/local-authority/32UC,Environment Team Leader,Grants and Contributions to Outside Bodies- No Service Recei,30/10/2014,IJ00037765,1800.00,AJET DRAIN SERVICES,
East Lindsey District Council,http://statistics.data.gov.uk/id/local-authority/32UC,Leisure Operations,Purchase Of Goods For Resale,30/10/2014,IJ00037760,543.52,DEE BEE,
East Lindsey District Council,http://statistics.data.gov.uk/id/local-authority/32UC,BALANCE  SHEET,Payroll-Cons Group Savings,30/10/2014,IJ00037798,570.00,ELDC CONSERVATIVE GROUP,
East Lindsey District Council,http://statistics.data.gov.uk/id/local-authority/32UC,Theatre Manager,Performers and Entertainers Fees,30/10/2014,IJ00037838,2883.60,TIMELESS THEATRE PRODUCTIONS LTD,
East Lindsey District Council,http://statistics.data.gov.uk/id/local-authority/32UC,Theatre Manager,Performers and Entertainers Fees,30/10/2014,IJ00037838,-210.00,TIMELESS THEATRE PRODUCTIONS LTD,
East Lindsey District Council,http://statistics.data.gov.uk/id/local-authority/32UC,BALANCE  SHEET,Payroll-Gmbatu,30/10/2014,IJ00037816,697.64,GMB NATIONAL ADMINISTRATION UNIT,
East Lindsey District Council,http://statistics.data.gov.uk/id/local-authority/32UC,Theatre Manager,Performers and Entertainers Fees,30/10/2014,IJ00037840,1081.46,PREMIER STAGE PRODUCTIONS LTD,
East Lindsey District Council,http://statistics.data.gov.uk/id/local-authority/32UC,Theatre Manager,Performers and Entertainers Fees,30/10/2014,IJ00037840,-270.00,PREMIER STAGE PRODUCTIONS LTD,
East Lindsey District Council,http://statistics.data.gov.uk/id/local-authority/32UC,Information Technology,Computer Software Licence Costs,30/10/2014,IJ00037955,6902.00,WEBASPX LIMITED,
East Lindsey District Council,http://statistics.data.gov.uk/id/local-authority/32UC,Hsg Private Sector TL,Other Income,30/10/2014,IJ00037835,-99.50,DOLPHIN MOBILITY EAST MIDLANDS,
East Lindsey District Council,http://statistics.data.gov.uk/id/local-authority/32UC,Hsg Private Sector TL,Grants and Contributions to Outside Bodies- No Service Recei,30/10/2014,IJ00037835,1114.40,DOLPHIN MOBILITY EAST MIDLANDS,
East Lindsey District Council,http://statistics.data.gov.uk/id/local-authority/32UC,Hsg Advice & Homelessness TL,Grants and Contributions to Outside Bodies- No Service Recei,30/10/2014,IJ00037774,5000.00,EAST LINDSEY CITIZENS ADVICE BUREAU,
East Lindsey District Council,http://statistics.data.gov.uk/id/local-authority/32UC,Building Control,Professional & Contractors Fees,30/10/2014,IJ00037958,1900.00,IDOX SOFTWARE LTD,
East Lindsey District Council,http://statistics.data.gov.uk/id/local-authority/32UC,Economic & Tourism,Grants and Contributions to Outside Bodies- No Service Recei,30/10/2014,IJ00037767,9321.03,MABLETHORPE AREA PARTNERSHIP,
East Lindsey District Council,http://statistics.data.gov.uk/id/local-authority/32UC,Hsg Private Sector TL,Other Income,30/10/2014,IJ00037892,-318.10,THM CONSTRUCTION,
East Lindsey District Council,http://statistics.data.gov.uk/id/local-authority/32UC,Hsg Private Sector TL,Grants and Contributions to Outside Bodies- No Service Recei,30/10/2014,IJ00037892,3562.72,THM CONSTRUCTION,
East Lindsey District Council,http://statistics.data.gov.uk/id/local-authority/32UC,Hsg Private Sector TL,Other Income,30/10/2014,IJ00037834,-840.75,THM CONSTRUCTION,
East Lindsey District Council,http://statistics.data.gov.uk/id/local-authority/32UC,Hsg Private Sector TL,Grants and Contributions to Outside Bodies- No Service Recei,30/10/2014,IJ00037834,2409.16,THM CONSTRUCTION,
East Lindsey District Council,http://statistics.data.gov.uk/id/local-authority/32UC,Neighbourhood Services,Water and Sewerage Charges,30/10/2014,IJ00037907,2834.89,ANGLIAN WATER,
East Lindsey District Council,http://statistics.data.gov.uk/id/local-authority/32UC,Neighbourhood Services,Water and Sewerage Charges,30/10/2014,IJ00037908,719.40,ANGLIAN WATER,
East Lindsey District Council,http://statistics.data.gov.uk/id/local-authority/32UC,Economic & Tourism,Water and Sewerage Charges,30/10/2014,IJ00037910,7198.50,ANGLIAN WATER,
East Lindsey District Council,http://statistics.data.gov.uk/id/local-authority/32UC,Neighbourhood Services,Water and Sewerage Charges,30/10/2014,IJ00037911,685.73,ANGLIAN WATER,
East Lindsey District Council,http://statistics.data.gov.uk/id/local-authority/32UC,Neighbourhood Services,Water and Sewerage Charges,30/10/2014,IJ00037912,885.98,ANGLIAN WATER,
East Lindsey District Council,http://statistics.data.gov.uk/id/local-authority/32UC,Leisure Operations,Water and Sewerage Charges,30/10/2014,IJ00037913,5380.86,ANGLIAN WATER,
East Lindsey District Council,http://statistics.data.gov.uk/id/local-authority/32UC,Corporate Accounting,Professional & Contractors Fees,30/10/2014,IJ00037860,1025.19,KINGS ARMOURED SECURITY SERVICES LTD,
East Lindsey District Council,http://statistics.data.gov.uk/id/local-authority/32UC,Leisure Operations,Buildings Maintenance - Programmed,30/10/2014,IJ00037886,540.00,SDG Access Limited,
East Lindsey District Council,http://statistics.data.gov.uk/id/local-authority/32UC,Environment Team Leader,Other Private Contractors,30/10/2014,IJ00037764,1300.00,ARNOLD FUNERAL SERVICE,
East Lindsey District Council,http://statistics.data.gov.uk/id/local-authority/32UC,Hsg Private Sector TL,Other Income,30/10/2014,IJ00037833,-794.95,ANDREW WRISDALE BUILDING CONTRACTOR,
East Lindsey District Council,http://statistics.data.gov.uk/id/local-authority/32UC,Hsg Private Sector TL,Grants and Contributions to Outside Bodies- No Service Recei,30/10/2014,IJ00037833,3630.87,ANDREW WRISDALE BUILDING CONTRACTOR,
East Lindsey District Council,http://statistics.data.gov.uk/id/local-authority/32UC,Enforcement Team Leader,Professional & Contractors Fees,30/10/2014,IJ00037859,566.81,CHIPSIDE LIMITED,
East Lindsey District Council,http://statistics.data.gov.uk/id/local-authority/32UC,Cultural & Related Services,Performers and Entertainers Fees,30/10/2014,IJ00037945,500.00,Geoffrey Whiting,
East Lindsey District Council,http://statistics.data.gov.uk/id/local-authority/32UC,"Performance, Governance & Commissioning",Stationery,30/10/2014,IJ00037918,1983.20,Print.UK.com,
East Lindsey District Council,http://statistics.data.gov.uk/id/local-authority/32UC,Economic & Tourism,Other Miscellaneous Expenses,30/10/2014,IJ00037784,8869.52,Groundwork Archaeology Ltd,
East Lindsey District Council,http://statistics.data.gov.uk/id/local-authority/32UC,Economic & Tourism,Other Miscellaneous Expenses,30/10/2014,IJ00037785,945.00,Sam Wilson,
East Lindsey District Council,http://statistics.data.gov.uk/id/local-authority/32UC,"Performance, Governance & Commissioning",Grants and Contributions to Outside Bodies- No Service Recei,30/10/2014,IJ00037824,2200.00,Woodhall Spa Tennis Club,
East Lindsey District Council,http://statistics.data.gov.uk/id/local-authority/32UC,"Performance, Governance & Commissioning",Grants and Contributions to Outside Bodies- No Service Recei,30/10/2014,IJ00037857,3600.00,Lincolnshire Wolds Railway Society,
East Lindsey District Council,http://statistics.data.gov.uk/id/local-authority/32UC,Waste Services Manager,Agency Staff,30/10/2014,IJ00037839,1035.10,BIBBY FACTORS YORKSHIRE LIMITED,
East Lindsey District Council,http://statistics.data.gov.uk/id/local-authority/32UC,Waste Services Manager,Agency Staff,30/10/2014,IJ00037938,1270.35,BIBBY FACTORS YORKSHIRE LIMITED,
East Lindsey District Council,http://statistics.data.gov.uk/id/local-authority/32UC,"Performance, Governance & Commissioning",Other Miscellaneous Expenses,30/10/2014,IJ00037819,748.25,Frontline Consulting Associates,
East Lindsey District Council,http://statistics.data.gov.uk/id/local-authority/32UC,"Performance, Governance & Commissioning",Grants and Contributions to Outside Bodies- No Service Recei,30/10/2014,IJ00037937,700.00,ST PETERS CHURCH TRUSTHORPE,
East Lindsey District Council,http://statistics.data.gov.uk/id/local-authority/32UC,Waste Services Manager,Agency Staff,30/10/2014,IJ00037920,5853.35,LYNX MOTORHOMES LTD,
East Lindsey District Council,http://statistics.data.gov.uk/id/local-authority/32UC,Leisure Operations,Advertising - Legal And Public,30/10/2014,IJ00037817,787.00,Media Market Design,
East Lindsey District Council,http://statistics.data.gov.uk/id/local-authority/32UC,Cultural & Related Services,Performers and Entertainers Fees,30/10/2014,IJ00037946,700.00,SV Educational Services,
East Lindsey District Council,http://statistics.data.gov.uk/id/local-authority/32UC,"Performance, Governance & Commissioning",Grants and Contributions to Outside Bodies- No Service Recei,30/10/2014,IJ00037922,500.00,1st Alford Guide Company,
East Lindsey District Council,http://statistics.data.gov.uk/id/local-authority/32UC,Hsg Private Sector TL,Other Income,31/10/2014,IJ00037961,-397.24,KES BUILDING MAINTENANCE LTD,
East Lindsey District Council,http://statistics.data.gov.uk/id/local-authority/32UC,Hsg Private Sector TL,Grants and Contributions to Outside Bodies- No Service Recei,31/10/2014,IJ00037961,4449.05,KES BUILDING MAINTENANCE LTD,
East Lindsey District Council,http://statistics.data.gov.uk/id/local-authority/32UC,"Performance, Governance & Commissioning",Grants and Contributions to Outside Bodies- No Service Recei,31/10/2014,IJ00037641,700.00,ST PETERS CHURCH TRUSTHORPE,
